Workbook

Sheet Instructions
A1: Manufacturer | B1: Novabell
A2: File as | B2: N
A3: Product Code | B3: B
A4: CCTD Effective Date | B4: 11/1/24 (Updated)
A8: Enter your Company Name
B10: Click on "Index" to set the print area for the price list index
B11: Then you can send it to print
B14: Click on "Suggested Price List" to set the print area for Conestoga Tile's suggested price list.
B15: Then you can send it to print
B18: Enter your discount codes if you want a personal net cost sheet.
B20: Product
B21: Code | C21: Disc. %
B22: =+B3 -> B
B24: Click on "Your Cost" to set the print area for your personal cost report.
B25: Then you can send it to print
A28: Discount: | B28: To help establish your price list, enter the gross profit percent for each type of product.
B29: If you want to use Conestoga Tile's list price, leave them blank.
A31: Round Nickel: | B31: If you always want your price to round to the nearest nickel, enter "YES".
B32: If you enter "NO", it will NOT round to the nearest nickel.
A34: Ending Cents: | B34: If you always want your price to end with a certain cents, enter that cent value.
B35: If you leave it "blank" will NOT round to this cent value.
B37: Group | C37: GP Margin | D37: GP Margin % for | F37: Round Nickel | G37: add/subtract | H37: Ending Cents
B38: 1 | D38: Field Tile | F38: No | G38: 0
B39: 2 | D39: Trim | F39: No | G39: 0
B40: 3 | D40: Decos | F40: No | G40: 0
B41: 4 | D41: 0 | F41: No | G41: 0
B42: 5 | D42: 0 | F42: No | G42: 0
B43: 6 | D43: 0 | F43: No | G43: 0
B44: 7 | D44: 0 | F44: No | G44: 0
A46: If you want to manually adjust your price list, hit "F5" and go to "Customer_Cost" to manually adjust pricing.
A47: You can enter a value in the column labeled "Adj." to change your price manually.
B49: Click on "Your Price Calculation" to set the print area for your personal cost calculation report.
B50: Then you can send it to print
B53: Click on "Your Price List" to set the print area for your personal price list.
B54: Then you can send it to print
H55: Yes
A57: If you have any questions on how to best use this spreadsheet, please feel free to contact
A58: Jim Vogel at (800) 422-6860, ext. 4201 or via e-mail at jimvogel@cctd.com

Sheet Index
F3: ="File '"&Instructions!B2&"' - "&Instructions!B1 -> File 'N' - Novabell
A6: ="Price List Index - "&Instructions!B4 -> Price List Index - 11/1/24 (Updated)
A11: Page | C11: Series | E11: Product Type | G11: Page | I11: Series | K11: Product Type
A12: 1 | C12: Aspen | E12: Glazed Porcelain
A13: 1 | C13: Brickup | E13: Glazed Porcelain
A14: 1 | C14: Extra | E14: Glazed Porcelain
A15: 2 | C15: Michelangelo (Disc. 10/23/24) | E15: Glazed Porcelain
A16: 2 | C16: Sovereign | E16: Glazed Porcelain
A17: 2 | C17: Urbe | E17: Glazed Porcelain
A49: This price list is available electronically on an Excel spreadsheet at www.conestogatile.com/pricelists.
A51: The spreadsheet has many special features to assist you. Apply your discount to generate your net costs for your purchasing department. Apply your standard gross margin percentage or custom prices to generate your own custom price list for your showroom. Print out individual price list for each series that can be attached to the back of your sample boards for easy reference.

Sheet Price List
B1: Field Tile | E1: Size | G1: Field | P1: SF/CTN | S1: =IF(Suggested="Yes",'Price List'!AA1,'Price List'!AG1) -> 0.05 | T1: SF | U1: =+Instructions!$B$3 -> B | W1: =+Instructions!$C$22 -> 0 | X1: =ROUND($AA1*(1-W1)+0.004999,2) -> 0.05 | Z1: new | AA1: 0.05 | AB1: =+W1 -> 0 | AC1: 0.05 | AD1: =(AG1-AC1)/AG1 -> 0 | AF1: 1 | AG1: =SUM(AJ1:AL1)+AE1 -> 0.05 | AJ1: =ROUND(AC1/(1-VLOOKUP(AF1,Group,2,FALSE)),2) -> 0.05 | AK1: =IF(VLOOKUP(AF1,Group,5,FALSE)="YES",VLOOKUP(ROUND(ROUND(AJ1,1)-AJ1,2),Round,2,FALSE)+VLOOKUP(AF1,Group,6,FALSE),0) -> 0 | AL1: =IF(VLOOKUP(AF1,Group,7,FALSE)="",0,ROUND(AJ1-0.04999,1)-AJ1+AM1) -> 0 | AM1: =IF(VLOOKUP(AF1,Group,7,FALSE)="","",VLOOKUP(AF1,Group,7,FALSE)) ->  | AO1: X
B2: Trim | E2: Size | G2: Shape | I2: Description | S2: =IF(Suggested="Yes",'Price List'!AA2,'Price List'!AG2) -> 0.05 | T2: EA | U2: =+Instructions!$B$3 -> B | W2: =+Instructions!$C$22 -> 0 | X2: 0.05 | Z2: new | AA2: 0.05 | AB2: 0 | AC2: 0.05 | AD2: 0 | AF2: 2 | AG2: 0.05 | AJ2: 0.05 | AK2: 0 | AL2: 0 | AO2: X
B3: Decos | E3: Size | G3: Shape | I3: Description | S3: =IF(Suggested="Yes",'Price List'!AA3,'Price List'!AG3) -> 0.05 | T3: EA | U3: =+Instructions!$B$3 -> B | W3: =+Instructions!$C$22 -> 0 | X3: 0.05 | Z3: new | AA3: 0.05 | AB3: 0 | AC3: 0.05 | AD3: 0 | AF3: 3 | AG3: 0.05 | AJ3: 0.05 | AK3: 0 | AL3: 0 | AO3: X
B4: 0 | E4: Size | G4: Shape | I4: Description | S4: =IF(Suggested="Yes",'Price List'!AA4,'Price List'!AG4) -> 0 | T4: EA | U4: =+Instructions!$B$3 -> B | W4: =+Instructions!$C$22 -> 0 | X4: 0 | Z4: new | AA4: 0 | AB4: 0 | AC4: 0 | AF4: 4 | AG4: 0 | AJ4: 0 | AK4: 0 | AL4: 0 | AO4: X
B5: 0 | E5: Size | G5: Shape | I5: Description | S5: =IF(Suggested="Yes",'Price List'!AA5,'Price List'!AG5) -> 0 | T5: EA | U5: =+Instructions!$B$3 -> B | W5: =+Instructions!$C$22 -> 0 | X5: 0 | Z5: new | AA5: 0 | AB5: 0 | AC5: 0 | AF5: 5 | AG5: 0 | AJ5: 0 | AK5: 0 | AL5: 0 | AO5: X
B6: 0 | E6: Size | G6: Shape | I6: Description | S6: =IF(Suggested="Yes",'Price List'!AA6,'Price List'!AG6) -> 0 | T6: EA | U6: =+Instructions!$B$3 -> B | W6: =+Instructions!$C$22 -> 0 | X6: 0 | Z6: new | AA6: 0 | AB6: 0 | AC6: 0 | AF6: 6 | AG6: 0 | AJ6: 0 | AK6: 0 | AL6: 0 | AO6: X
B7: 0 | E7: Size | G7: Shape | I7: Description | S7: =IF(Suggested="Yes",'Price List'!AA7,'Price List'!AG7) -> 0 | T7: EA | U7: =+Instructions!$B$3 -> B | W7: =+Instructions!$C$22 -> 0 | X7: 0 | Z7: new | AA7: 0 | AB7: 0 | AC7: 0 | AF7: 7 | AG7: 0 | AJ7: 0 | AK7: 0 | AL7: 0 | AO7: X
B8: Format | Q8: Stock | R8: a | S8: 1000 | T8: ABC | W8: 0.1 | X8: 1000 | Z8: ABC | AA8: 1000 | AB8: 0.1 | AC8: 1000 | AD8: 0.1 | AE8: 10 | AG8: 1000 | AO8: X
AO9: X
O10: Price List | W10: Cust. Cost | Z10: Customer Cost Calculation | AO10: X
D11: Sizes & Shapes | O11: Full Carton | Q11: Stock | R11: Note | S11: =IF(Suggested="Yes",AA11,AG11) -> List Price | T11: U/M | U11: Code | W11: Disc. | X11: Net | Z11: Chg | AA11: List Price | AB11: Disc | AC11: Act. Cost | AD11: GP% | AE11: Adj. | AF11: Group | AG11: Price | AJ11: Calc Price | AK11: .05 Round | AL11: Cents | AM11: Round to | AO11: X
AO12: X
O13: ="File '"&Instructions!B2&"' - "&Instructions!B1 -> File 'N' - Novabell | W13: Cost | AG13: Retail Price Calculations | AO13: X
T14: =+Instructions!B4 -> 11/1/24 (Updated) | AE14: =TODAY() -> 2024-11-04 | AO14: X
N15: =IF(Instructions!C8="","",+Instructions!C8) ->  | AO15: X
C16: ="Product Code '"&Instructions!B3&"'" -> Product Code 'B' | AG16: =IF(Instructions!$C$8="","",Instructions!$C$8) ->  | AO16: X
AO17: X
C18: Sizes & Shapes | O18: Full Carton | Q18: Stock | R18: Note | S18: =+S$11 -> List Price | T18: U/M | U18: =+U$11 -> Code | W18: Disc. | X18: Net | Z18: Chg | AA18: List Price | AB18: =+AB$11 -> Disc | AC18: Act. Cost | AD18: GP% | AE18: Adj. | AF18: =+AF$11 -> Group | AG18: Price | AJ18: Calc Price | AK18: .05 Round | AL18: Cents | AM18: Round to | AO18: X
C19: ALL ITEMS MARKED WITH PACKAGING QUANTITY ARE SOLD IN MULTIPLES OF THAT QUANTITY ONLY | AO19: X
C20: NON-Stock ITEMS - MINIMUM 6-8 WEEK DELIVERY
AO21: X
C22: ASPEN - Glazed Porcelain | R22: Item # Lookup: | S22: NVAS
AO23: X
D24: Colors: | E24: Basalt Oxide Rock Grey Sand Moon Snow
AO25: X
B26: Field Tile | E26: 4" x 12" | G26: Field | P26: 9.04 SF/CTN | Q26: Stock | S26: =IF(Suggested="Yes",'Price List'!AA26,'Price List'!AG26) -> 8.8 | T26: SF | U26: =+Instructions!$B$3 -> B | W26: =+Instructions!$C$22 -> 0 | X26: =ROUND($AA26*(1-W26)+0.004999,2) -> 8.8 | AA26: 8.8 | AB26: =+W26 -> 0 | AC26: 8.8 | AD26: =(AG26-AC26)/AG26 -> 0 | AF26: 1 | AG26: =SUM(AJ26:AL26)+AE26 -> 8.8 | AJ26: =ROUND(AC26/(1-VLOOKUP(AF26,Group,2,FALSE)),2) -> 8.8 | AK26: =IF(VLOOKUP(AF26,Group,5,FALSE)="YES",VLOOKUP(ROUND(ROUND(AJ26,1)-AJ26,2),Round,2,FALSE)+VLOOKUP(AF26,Group,6,FALSE),0) -> 0 | AL26: =IF(VLOOKUP(AF26,Group,7,FALSE)="",0,ROUND(AJ26-0.04999,1)-AJ26+AM26) -> 0 | AM26: =IF(VLOOKUP(AF26,Group,7,FALSE)="","",VLOOKUP(AF26,Group,7,FALSE)) ->  | AO26: X
B27: Field Tile | E27: 12" x 24" | G27: Field | P27: 13.56 SF/CTN | Q27: Stock | S27: =IF(Suggested="Yes",'Price List'!AA27,'Price List'!AG27) -> 6.95 | T27: SF | U27: =+Instructions!$B$3 -> B | W27: =+Instructions!$C$22 -> 0 | X27: 6.95 | AA27: 6.95 | AB27: 0 | AC27: 6.95 | AD27: 0 | AF27: 1 | AG27: 6.95 | AJ27: 6.95 | AK27: 0 | AL27: 0 | AO27: X
B28: Field Tile | E28: 12" x 24" | G28: Field - Provenzale | P28: 9.17 SF/CTN | Q28: Stock | R28: a | S28: =IF(Suggested="Yes",'Price List'!AA28,'Price List'!AG28) -> 14.65 | T28: SF | U28: =+Instructions!$B$3 -> B | W28: =+Instructions!$C$22 -> 0 | X28: 14.65 | AA28: 14.65 | AB28: 0 | AC28: 14.65 | AD28: 0 | AF28: 1 | AG28: 14.65 | AJ28: 14.65 | AK28: 0 | AL28: 0 | AO28: X
B29: Field Tile | E29: 12" x 24" | G29: Field - Struttura Grooves | P29: 13.56 SF/CTN | S29: =IF(Suggested="Yes",'Price List'!AA29,'Price List'!AG29) -> 7.2 | T29: SF | U29: =+Instructions!$B$3 -> B | W29: =+Instructions!$C$22 -> 0 | X29: 7.2 | AA29: 7.2 | AB29: 0 | AC29: 7.2 | AD29: 0 | AF29: 1 | AG29: 7.2 | AJ29: 7.2 | AK29: 0 | AL29: 0 | AO29: X
B30: Field Tile | E30: 24" x 24" | G30: Field | P30: 11.62 SF/CTN | S30: =IF(Suggested="Yes",'Price List'!AA30,'Price List'!AG30) -> 7.4 | T30: SF | U30: =+Instructions!$B$3 -> B | W30: =+Instructions!$C$22 -> 0 | X30: 7.4 | AA30: 7.4 | AB30: 0 | AC30: 7.4 | AD30: 0 | AF30: 1 | AG30: 7.4 | AJ30: 7.4 | AK30: 0 | AL30: 0 | AO30: X
B31: Field Tile | E31: 24" x 48" | G31: Field | P31: 15.49 SF/CTN | S31: =IF(Suggested="Yes",'Price List'!AA31,'Price List'!AG31) -> 7.55 | T31: SF | U31: =+Instructions!$B$3 -> B | W31: =+Instructions!$C$22 -> 0 | X31: 7.55 | AA31: 7.55 | AB31: 0 | AC31: 7.55 | AD31: 0 | AF31: 1 | AG31: 7.55 | AJ31: 7.55 | AK31: 0 | AL31: 0 | AO31: X
B32: Field Tile | E32: 24" x 48" | G32: Field - Struttura Grooves | P32: 7.75 SF/CTN | S32: =IF(Suggested="Yes",'Price List'!AA32,'Price List'!AG32) -> 7.85 | T32: SF | U32: =+Instructions!$B$3 -> B | W32: =+Instructions!$C$22 -> 0 | X32: 7.85 | AA32: 7.85 | AB32: 0 | AC32: 7.85 | AD32: 0 | AF32: 1 | AG32: 7.85 | AJ32: 7.85 | AK32: 0 | AL32: 0 | AO32: X
AO33: X
B34: Decos | E34: 12" x 12" | G34: Mosaic | I34: 2" x 2" | N34: mesh-mounted | P34: 0.97 SF/Sheet | Q34: Stock | S34: =IF(Suggested="Yes",'Price List'!AA34,'Price List'!AG34) -> 18.7 | T34: SF | U34: =+Instructions!$B$3 -> B | W34: =+Instructions!$C$22 -> 0 | X34: =ROUND($AA34*(1-W34)+0.004999,2) -> 18.7 | AA34: 18.7 | AB34: =+W34 -> 0 | AC34: 18.7 | AD34: =(AG34-AC34)/AG34 -> 0 | AF34: 3 | AG34: =SUM(AJ34:AL34)+AE34 -> 18.7 | AJ34: =ROUND(AC34/(1-VLOOKUP(AF34,Group,2,FALSE)),2) -> 18.7 | AK34: =IF(VLOOKUP(AF34,Group,5,FALSE)="YES",VLOOKUP(ROUND(ROUND(AJ34,1)-AJ34,2),Round,2,FALSE)+VLOOKUP(AF34,Group,6,FALSE),0) -> 0 | AL34: =IF(VLOOKUP(AF34,Group,7,FALSE)="",0,ROUND(AJ34-0.04999,1)-AJ34+AM34) -> 0 | AM34: =IF(VLOOKUP(AF34,Group,7,FALSE)="","",VLOOKUP(AF34,Group,7,FALSE)) ->  | AO34: X
B35: Decos | E35: 12" x 12" | G35: Mosaic | I35: Pebble (Sassi) | N35: mesh-mounted | P35: 9.68 SF/CTN | S35: =IF(Suggested="Yes",'Price List'!AA35,'Price List'!AG35) -> 42 | T35: SF | U35: =+Instructions!$B$3 -> B | W35: =+Instructions!$C$22 -> 0 | X35: =ROUND($AA35*(1-W35)+0.004999,2) -> 42 | AA35: 42 | AB35: 0 | AC35: 42 | AD35: =(AG35-AC35)/AG35 -> 0 | AF35: 3 | AG35: =SUM(AJ35:AL35)+AE35 -> 42 | AJ35: =ROUND(AC35/(1-VLOOKUP(AF35,Group,2,FALSE)),2) -> 42 | AK35: =IF(VLOOKUP(AF35,Group,5,FALSE)="YES",VLOOKUP(ROUND(ROUND(AJ35,1)-AJ35,2),Round,2,FALSE)+VLOOKUP(AF35,Group,6,FALSE),0) -> 0 | AL35: =IF(VLOOKUP(AF35,Group,7,FALSE)="",0,ROUND(AJ35-0.04999,1)-AJ35+AM35) -> 0 | AM35: =IF(VLOOKUP(AF35,Group,7,FALSE)="","",VLOOKUP(AF35,Group,7,FALSE)) ->  | AO35: X
B36: Decos | E36: 12" x 12" | G36: Mosaic | I36: Pebble (Sassi) - Dark Mix (O-B-RG) | N36: mesh-mounted | P36: 9.68 SF/CTN | S36: =IF(Suggested="Yes",'Price List'!AA36,'Price List'!AG36) -> 42 | T36: SF | U36: =+Instructions!$B$3 -> B | W36: =+Instructions!$C$22 -> 0 | X36: =ROUND($AA36*(1-W36)+0.004999,2) -> 42 | AA36: 42 | AB36: 0 | AC36: 42 | AD36: =(AG36-AC36)/AG36 -> 0 | AF36: 3 | AG36: =SUM(AJ36:AL36)+AE36 -> 42 | AJ36: =ROUND(AC36/(1-VLOOKUP(AF36,Group,2,FALSE)),2) -> 42 | AK36: =IF(VLOOKUP(AF36,Group,5,FALSE)="YES",VLOOKUP(ROUND(ROUND(AJ36,1)-AJ36,2),Round,2,FALSE)+VLOOKUP(AF36,Group,6,FALSE),0) -> 0 | AL36: =IF(VLOOKUP(AF36,Group,7,FALSE)="",0,ROUND(AJ36-0.04999,1)-AJ36+AM36) -> 0 | AM36: =IF(VLOOKUP(AF36,Group,7,FALSE)="","",VLOOKUP(AF36,Group,7,FALSE)) ->  | AO36: X
B37: Decos | E37: 12" x 12" | G37: Mosaic | I37: Pebble (Sassi) - Light Mix (SM-S-RG) | N37: mesh-mounted | P37: 9.68 SF/CTN | S37: =IF(Suggested="Yes",'Price List'!AA37,'Price List'!AG37) -> 42 | T37: SF | U37: =+Instructions!$B$3 -> B | W37: =+Instructions!$C$22 -> 0 | X37: =ROUND($AA37*(1-W37)+0.004999,2) -> 42 | AA37: 42 | AB37: 0 | AC37: 42 | AD37: =(AG37-AC37)/AG37 -> 0 | AF37: 3 | AG37: =SUM(AJ37:AL37)+AE37 -> 42 | AJ37: =ROUND(AC37/(1-VLOOKUP(AF37,Group,2,FALSE)),2) -> 42 | AK37: =IF(VLOOKUP(AF37,Group,5,FALSE)="YES",VLOOKUP(ROUND(ROUND(AJ37,1)-AJ37,2),Round,2,FALSE)+VLOOKUP(AF37,Group,6,FALSE),0) -> 0 | AL37: =IF(VLOOKUP(AF37,Group,7,FALSE)="",0,ROUND(AJ37-0.04999,1)-AJ37+AM37) -> 0 | AM37: =IF(VLOOKUP(AF37,Group,7,FALSE)="","",VLOOKUP(AF37,Group,7,FALSE)) ->  | AO37: X
B38: Decos | E38: 12" x 24" | G38: Mosaic | I38: Brick (Mattoncino) | N38: mesh-mounted | P38: 7.75 SF/CTN | S38: =IF(Suggested="Yes",'Price List'!AA38,'Price List'!AG38) -> 26.3 | T38: SF | U38: =+Instructions!$B$3 -> B | W38: =+Instructions!$C$22 -> 0 | X38: =ROUND($AA38*(1-W38)+0.004999,2) -> 26.3 | AA38: 26.3 | AB38: 0 | AC38: 26.3 | AD38: =(AG38-AC38)/AG38 -> 0 | AF38: 3 | AG38: =SUM(AJ38:AL38)+AE38 -> 26.3 | AJ38: =ROUND(AC38/(1-VLOOKUP(AF38,Group,2,FALSE)),2) -> 26.3 | AK38: =IF(VLOOKUP(AF38,Group,5,FALSE)="YES",VLOOKUP(ROUND(ROUND(AJ38,1)-AJ38,2),Round,2,FALSE)+VLOOKUP(AF38,Group,6,FALSE),0) -> 0 | AL38: =IF(VLOOKUP(AF38,Group,7,FALSE)="",0,ROUND(AJ38-0.04999,1)-AJ38+AM38) -> 0 | AM38: =IF(VLOOKUP(AF38,Group,7,FALSE)="","",VLOOKUP(AF38,Group,7,FALSE)) ->  | AO38: X
AO39: X
B40: Trim | E40: 3" x 24" | G40: Bullnose | Q40: Stock | S40: =IF(Suggested="Yes",'Price List'!AA40,'Price List'!AG40) -> 16.85 | T40: EA | U40: =+Instructions!$B$3 -> B | W40: =+Instructions!$C$22 -> 0 | X40: =ROUND($AA40*(1-W40)+0.004999,2) -> 16.85 | AA40: 16.85 | AB40: =+W40 -> 0 | AC40: =+X40 -> 16.85 | AD40: =(AG40-AC40)/AG40 -> 0 | AF40: 2 | AG40: =SUM(AJ40:AL40)+AE40 -> 16.85 | AJ40: =ROUND(AC40/(1-VLOOKUP(AF40,Group,2,FALSE)),2) -> 16.85 | AK40: =IF(VLOOKUP(AF40,Group,5,FALSE)="YES",VLOOKUP(ROUND(ROUND(AJ40,1)-AJ40,2),Round,2,FALSE)+VLOOKUP(AF40,Group,6,FALSE),0) -> 0 | AL40: =IF(VLOOKUP(AF40,Group,7,FALSE)="",0,ROUND(AJ40-0.04999,1)-AJ40+AM40) -> 0 | AM40: =IF(VLOOKUP(AF40,Group,7,FALSE)="","",VLOOKUP(AF40,Group,7,FALSE)) ->  | AO40: X
AO41: X
D42: Colors: | E42: Basalt/Rock Grey | H42: Rock Grey/Basalt | L42: Snow/Rock Grey
E43: Oxide/Sand Moon | H43: Sand Moon/Rock Grey
AO44: X
B45: Decos | E45: 12" x 12" | G45: Mosaic | I45: Basketweave (Trama) | N45: mesh-mounted | P45: 0.97 SF/Sheet | Q45: Stock | S45: =IF(Suggested="Yes",'Price List'!AA45,'Price List'!AG45) -> 33.05 | T45: SF | U45: =+Instructions!$B$3 -> B | W45: =+Instructions!$C$22 -> 0 | X45: =ROUND($AA45*(1-W45)+0.004999,2) -> 33.05 | AA45: 33.05 | AB45: =+W45 -> 0 | AC45: =+X45 -> 33.05 | AD45: =(AG45-AC45)/AG45 -> 0 | AF45: 3 | AG45: =SUM(AJ45:AL45)+AE45 -> 33.05 | AJ45: =ROUND(AC45/(1-VLOOKUP(AF45,Group,2,FALSE)),2) -> 33.05 | AK45: =IF(VLOOKUP(AF45,Group,5,FALSE)="YES",VLOOKUP(ROUND(ROUND(AJ45,1)-AJ45,2),Round,2,FALSE)+VLOOKUP(AF45,Group,6,FALSE),0) -> 0 | AL45: =IF(VLOOKUP(AF45,Group,7,FALSE)="",0,ROUND(AJ45-0.04999,1)-AJ45+AM45) -> 0 | AM45: =IF(VLOOKUP(AF45,Group,7,FALSE)="","",VLOOKUP(AF45,Group,7,FALSE)) ->  | AO45: X
AO46: X
D47: Note: | E47: a) Stocked in colors Rock Grey, Sand Moon and Snow only. | AO47: X
C49: BRICKUP - Glazed Porcelain - 3D Brick Ledgerstone | R49: Item # Lookup: | S49: NVBR
AO50: X
D51: Colors: | E51: Ocean Ardesia | G51: Ocean Grey | L51: Ocean White
E52: Ocean Beige | G52: Ocean Mix Quarzite
AO53: X
B54: Field Tile | E54: 6-5/16" x 15-3/4" | G54: Field - Ledgerstone | P54: 10.33 SF/CTN | Q54: Stock | S54: =IF(Suggested="Yes",'Price List'!AA54,'Price List'!AG54) -> 6.95 | T54: SF | U54: =+Instructions!$B$3 -> B | W54: =+Instructions!$C$22 -> 0 | X54: =ROUND($AA54*(1-W54)+0.004999,2) -> 6.95 | AA54: 6.95 | AB54: =+W54 -> 0 | AC54: =+X54 -> 6.95 | AD54: =(AG54-AC54)/AG54 -> 0 | AF54: 1 | AG54: =SUM(AJ54:AL54)+AE54 -> 6.95 | AJ54: =ROUND(AC54/(1-VLOOKUP(AF54,Group,2,FALSE)),2) -> 6.95 | AK54: =IF(VLOOKUP(AF54,Group,5,FALSE)="YES",VLOOKUP(ROUND(ROUND(AJ54,1)-AJ54,2),Round,2,FALSE)+VLOOKUP(AF54,Group,6,FALSE),0) -> 0 | AL54: =IF(VLOOKUP(AF54,Group,7,FALSE)="",0,ROUND(AJ54-0.04999,1)-AJ54+AM54) -> 0 | AM54: =IF(VLOOKUP(AF54,Group,7,FALSE)="","",VLOOKUP(AF54,Group,7,FALSE)) ->  | AO54: X
AO55: X
B56: Decos | E56: 6-5/16" x 11" x 5-1/2" | G56: Corner | P56: 6 EA/CTN | Q56: Stock | S56: =IF(Suggested="Yes",'Price List'!AA56,'Price List'!AG56) -> 53 | T56: EA | U56: =+Instructions!$B$3 -> B | W56: =+Instructions!$C$22 -> 0 | X56: =ROUND($AA56*(1-W56)+0.004999,2) -> 53 | AA56: 53 | AB56: =+W56 -> 0 | AC56: =+X56 -> 53 | AD56: =(AG56-AC56)/AG56 -> 0 | AF56: 3 | AG56: =SUM(AJ56:AL56)+AE56 -> 53 | AJ56: =ROUND(AC56/(1-VLOOKUP(AF56,Group,2,FALSE)),2) -> 53 | AK56: =IF(VLOOKUP(AF56,Group,5,FALSE)="YES",VLOOKUP(ROUND(ROUND(AJ56,1)-AJ56,2),Round,2,FALSE)+VLOOKUP(AF56,Group,6,FALSE),0) -> 0 | AL56: =IF(VLOOKUP(AF56,Group,7,FALSE)="",0,ROUND(AJ56-0.04999,1)-AJ56+AM56) -> 0 | AM56: =IF(VLOOKUP(AF56,Group,7,FALSE)="","",VLOOKUP(AF56,Group,7,FALSE)) ->  | AO56: X
C58: EXTRA - Glazed Porcelain | R58: Item # Lookup: | S58: NVEX
AO59: X
D60: Colors: | E60: Calacatta Select Onice Bianco | G60: Pulpis Beige
E61: Onice Bianco | G61: Pulpis Grey
B63: Field Tile | D63: Natural: | E63: 4" x 12" | G63: Field | P63: 9.04 SF/CTN | Q63: Stock | S63: =IF(Suggested="Yes",'Price List'!AA63,'Price List'!AG63) -> 9.5 | T63: SF | U63: =+Instructions!$B$3 -> B | W63: =+Instructions!$C$22 -> 0 | X63: =ROUND($AA63*(1-W63)+0.004999,2) -> 9.5 | AA63: 9.5 | AB63: =+W63 -> 0 | AC63: =+X63 -> 9.5 | AD63: =(AG63-AC63)/AG63 -> 0 | AF63: 1 | AG63: =SUM(AJ63:AL63)+AE63 -> 9.5 | AJ63: =ROUND(AC63/(1-VLOOKUP(AF63,Group,2,FALSE)),2) -> 9.5 | AK63: =IF(VLOOKUP(AF63,Group,5,FALSE)="YES",VLOOKUP(ROUND(ROUND(AJ63,1)-AJ63,2),Round,2,FALSE)+VLOOKUP(AF63,Group,6,FALSE),0) -> 0 | AL63: =IF(VLOOKUP(AF63,Group,7,FALSE)="",0,ROUND(AJ63-0.04999,1)-AJ63+AM63) -> 0 | AM63: =IF(VLOOKUP(AF63,Group,7,FALSE)="","",VLOOKUP(AF63,Group,7,FALSE)) ->  | AO63: X
B64: Field Tile | E64: 12" x 24" | G64: Field | P64: 11.62 SF/CTN | Q64: Stock | S64: =IF(Suggested="Yes",'Price List'!AA64,'Price List'!AG64) -> 6.95 | T64: SF | U64: =+Instructions!$B$3 -> B | W64: =+Instructions!$C$22 -> 0 | X64: 6.95 | AA64: 6.95 | AB64: 0 | AC64: 6.95 | AD64: 0 | AF64: 1 | AG64: 6.95 | AJ64: 6.95 | AK64: 0 | AL64: 0 | AO64: X
B65: Field Tile | E65: 24" x 24" | G65: Field | P65: 11.62 SF/CTN | S65: =IF(Suggested="Yes",'Price List'!AA65,'Price List'!AG65) -> 7.4 | T65: SF | U65: =+Instructions!$B$3 -> B | W65: =+Instructions!$C$22 -> 0 | X65: 7.4 | AA65: 7.4 | AB65: 0 | AC65: 7.4 | AD65: 0 | AF65: 1 | AG65: 7.4 | AJ65: 7.4 | AK65: 0 | AL65: 0 | AO65: X
B66: Field Tile | E66: 24" x 48" | G66: Field | P66: 15.49 SF/CTN | S66: =IF(Suggested="Yes",'Price List'!AA66,'Price List'!AG66) -> 8.3 | T66: SF | U66: =+Instructions!$B$3 -> B | W66: =+Instructions!$C$22 -> 0 | X66: 8.3 | AA66: 8.3 | AB66: 0 | AC66: 8.3 | AD66: 0 | AF66: 1 | AG66: 8.3 | AJ66: 8.3 | AK66: 0 | AL66: 0 | AO66: X
B68: Decos | E68: 12" x 12" | G68: Mosaic | I68: 2" x 2" | P68: .97 SF/Sheet | Q68: Stock | S68: =IF(Suggested="Yes",'Price List'!AA68,'Price List'!AG68) -> 17.2 | T68: SF | U68: =+Instructions!$B$3 -> B | W68: =+Instructions!$C$22 -> 0 | X68: =ROUND($AA68*(1-W68)+0.004999,2) -> 17.2 | AA68: 17.2 | AB68: =+W68 -> 0 | AC68: =+X68 -> 17.2 | AD68: =(AG68-AC68)/AG68 -> 0 | AF68: 3 | AG68: =SUM(AJ68:AL68)+AE68 -> 17.2 | AJ68: =ROUND(AC68/(1-VLOOKUP(AF68,Group,2,FALSE)),2) -> 17.2 | AK68: =IF(VLOOKUP(AF68,Group,5,FALSE)="YES",VLOOKUP(ROUND(ROUND(AJ68,1)-AJ68,2),Round,2,FALSE)+VLOOKUP(AF68,Group,6,FALSE),0) -> 0 | AL68: =IF(VLOOKUP(AF68,Group,7,FALSE)="",0,ROUND(AJ68-0.04999,1)-AJ68+AM68) -> 0 | AM68: =IF(VLOOKUP(AF68,Group,7,FALSE)="","",VLOOKUP(AF68,Group,7,FALSE)) ->  | AO68: X
B69: Decos | E69: 11" x 11" | G69: Mosaic | I69: Lisca | P69: 8.40 SF/CTN | S69: =IF(Suggested="Yes",'Price List'!AA69,'Price List'!AG69) -> 23.4 | T69: SF | U69: =+Instructions!$B$3 -> B | W69: =+Instructions!$C$22 -> 0 | X69: 23.4 | AA69: 23.4 | AB69: 0 | AC69: 23.4 | AD69: 0 | AF69: 3 | AG69: 23.4 | AJ69: 23.4 | AK69: 0 | AL69: 0 | AO69: X
B71: Trim | E71: 3" x 24" | G71: Bullnose | Q71: Stock | S71: =IF(Suggested="Yes",'Price List'!AA71,'Price List'!AG71) -> 15.3 | T71: EA | U71: =+Instructions!$B$3 -> B | W71: =+Instructions!$C$22 -> 0 | X71: =ROUND($AA71*(1-W71)+0.004999,2) -> 15.3 | AA71: 15.3 | AB71: =+W71 -> 0 | AC71: =+X71 -> 15.3 | AD71: =(AG71-AC71)/AG71 -> 0 | AF71: 2 | AG71: =SUM(AJ71:AL71)+AE71 -> 15.3 | AJ71: =ROUND(AC71/(1-VLOOKUP(AF71,Group,2,FALSE)),2) -> 15.3 | AK71: =IF(VLOOKUP(AF71,Group,5,FALSE)="YES",VLOOKUP(ROUND(ROUND(AJ71,1)-AJ71,2),Round,2,FALSE)+VLOOKUP(AF71,Group,6,FALSE),0) -> 0 | AL71: =IF(VLOOKUP(AF71,Group,7,FALSE)="",0,ROUND(AJ71-0.04999,1)-AJ71+AM71) -> 0 | AM71: =IF(VLOOKUP(AF71,Group,7,FALSE)="","",VLOOKUP(AF71,Group,7,FALSE)) ->  | AO71: X
D73: Colors: | E73: Calacatta Select Onice Bianco | G73: Onice Bianco | K73: Pulpis Grey
E74: Marquina Shiny | G74: Pulpis Beige | K74: Scenic White
B76: Field Tile | D76: Polished: | E76: 4" x 12" | G76: Field | P76: 9.04 SF/CTN | Q76: Stock | R76: a | S76: =IF(Suggested="Yes",'Price List'!AA76,'Price List'!AG76) -> 10.85 | T76: SF | U76: =+Instructions!$B$3 -> B | W76: =+Instructions!$C$22 -> 0 | X76: =ROUND($AA76*(1-W76)+0.004999,2) -> 10.85 | AA76: 10.85 | AB76: =+W76 -> 0 | AC76: =+X76 -> 10.85 | AD76: =(AG76-AC76)/AG76 -> 0 | AF76: 1 | AG76: =SUM(AJ76:AL76)+AE76 -> 10.85 | AJ76: =ROUND(AC76/(1-VLOOKUP(AF76,Group,2,FALSE)),2) -> 10.85 | AK76: =IF(VLOOKUP(AF76,Group,5,FALSE)="YES",VLOOKUP(ROUND(ROUND(AJ76,1)-AJ76,2),Round,2,FALSE)+VLOOKUP(AF76,Group,6,FALSE),0) -> 0 | AL76: =IF(VLOOKUP(AF76,Group,7,FALSE)="",0,ROUND(AJ76-0.04999,1)-AJ76+AM76) -> 0 | AM76: =IF(VLOOKUP(AF76,Group,7,FALSE)="","",VLOOKUP(AF76,Group,7,FALSE)) ->  | AO76: X
B77: Field Tile | E77: 12" x 24" | G77: Field | P77: 11.62 SF/CTN | Q77: Stock | R77: a | S77: =IF(Suggested="Yes",'Price List'!AA77,'Price List'!AG77) -> 8.95 | T77: SF | U77: =+Instructions!$B$3 -> B | W77: =+Instructions!$C$22 -> 0 | X77: 8.95 | AA77: 8.95 | AB77: 0 | AC77: 8.95 | AD77: 0 | AF77: 1 | AG77: 8.95 | AJ77: 8.95 | AK77: 0 | AL77: 0 | AO77: X
B78: Field Tile | E78: 24" x 24" | G78: Field | P78: 11.62 SF/CTN | S78: =IF(Suggested="Yes",'Price List'!AA78,'Price List'!AG78) -> 9.45 | T78: SF | U78: =+Instructions!$B$3 -> B | W78: =+Instructions!$C$22 -> 0 | X78: 9.45 | AA78: 9.45 | AB78: 0 | AC78: 9.45 | AD78: 0 | AF78: 1 | AG78: 9.45 | AJ78: 9.45 | AK78: 0 | AL78: 0 | AO78: X
B79: Field Tile | E79: 24" x 48" | G79: Field | P79: 15.49 SF/CTN | Q79: Stock | S79: =IF(Suggested="Yes",'Price List'!AA79,'Price List'!AG79) -> 10.4 | T79: SF | U79: =+Instructions!$B$3 -> B | W79: =+Instructions!$C$22 -> 0 | X79: 10.4 | AA79: 10.4 | AB79: 0 | AC79: 10.4 | AD79: 0 | AF79: 1 | AG79: 10.4 | AJ79: 10.4 | AK79: 0 | AL79: 0 | AO79: X
B80: Field Tile | E80: 36" x 36" | G80: Field | J80: DISCONTINUED 11/4/2024 | P80: 17.43 SF/CTN | R80: b | S80: =IF(Suggested="Yes",'Price List'!AA80,'Price List'!AG80) -> 10.95 | T80: SF | U80: =+Instructions!$B$3 -> B | W80: =+Instructions!$C$22 -> 0 | X80: =ROUND($AA80*(1-W80)+0.004999,2) -> 10.95 | AA80: 10.95 | AB80: =+W80 -> 0 | AC80: =+X80 -> 10.95 | AD80: =(AG80-AC80)/AG80 -> 0 | AF80: 1 | AG80: =SUM(AJ80:AL80)+AE80 -> 10.95 | AJ80: =ROUND(AC80/(1-VLOOKUP(AF80,Group,2,FALSE)),2) -> 10.95 | AK80: =IF(VLOOKUP(AF80,Group,5,FALSE)="YES",VLOOKUP(ROUND(ROUND(AJ80,1)-AJ80,2),Round,2,FALSE)+VLOOKUP(AF80,Group,6,FALSE),0) -> 0 | AL80: =IF(VLOOKUP(AF80,Group,7,FALSE)="",0,ROUND(AJ80-0.04999,1)-AJ80+AM80) -> 0 | AM80: =IF(VLOOKUP(AF80,Group,7,FALSE)="","",VLOOKUP(AF80,Group,7,FALSE)) ->  | AO80: X
B81: Field Tile | E81: 36" x 72" | G81: Field | J81: DISCONTINUED 11/4/2024 | P81: 17.43 SF/CTN | R81: b | S81: =IF(Suggested="Yes",'Price List'!AA81,'Price List'!AG81) -> 11.65 | T81: SF | U81: =+Instructions!$B$3 -> B | W81: =+Instructions!$C$22 -> 0 | X81: 11.65 | AA81: 11.65 | AB81: 0 | AC81: 11.65 | AD81: 0 | AF81: 1 | AG81: 11.65 | AJ81: 11.65 | AK81: 0 | AL81: 0 | AO81: X
B83: Decos | E83: 12" x 12" | G83: Mosaic | I83: 2" x 2" | P83: 9.70 SF/CTN | S83: =IF(Suggested="Yes",'Price List'!AA83,'Price List'!AG83) -> 18.85 | T83: SF | U83: =+Instructions!$B$3 -> B | W83: =+Instructions!$C$22 -> 0 | X83: =ROUND($AA83*(1-W83)+0.004999,2) -> 18.85 | AA83: 18.85 | AB83: =+W83 -> 0 | AC83: =+X83 -> 18.85 | AD83: =(AG83-AC83)/AG83 -> 0 | AF83: 3 | AG83: =SUM(AJ83:AL83)+AE83 -> 18.85 | AJ83: =ROUND(AC83/(1-VLOOKUP(AF83,Group,2,FALSE)),2) -> 18.85 | AK83: =IF(VLOOKUP(AF83,Group,5,FALSE)="YES",VLOOKUP(ROUND(ROUND(AJ83,1)-AJ83,2),Round,2,FALSE)+VLOOKUP(AF83,Group,6,FALSE),0) -> 0 | AL83: =IF(VLOOKUP(AF83,Group,7,FALSE)="",0,ROUND(AJ83-0.04999,1)-AJ83+AM83) -> 0 | AM83: =IF(VLOOKUP(AF83,Group,7,FALSE)="","",VLOOKUP(AF83,Group,7,FALSE)) ->  | AO83: X
B84: Decos | E84: 11.8" x 11.4" | G84: Mosaic | I84: Chevron | P84: 6.37 SF/CTN | S84: =IF(Suggested="Yes",'Price List'!AA84,'Price List'!AG84) -> 34.7 | T84: SF | U84: =+Instructions!$B$3 -> B | W84: =+Instructions!$C$22 -> 0 | X84: 34.7 | AA84: 34.7 | AB84: 0 | AC84: 34.7 | AD84: 0 | AF84: 3 | AG84: 34.7 | AJ84: 34.7 | AK84: 0 | AL84: 0 | AO84: X
B85: Decos | E85: 15.7" x 13.8" | G85: Mosaic | I85: Esagona Hex | P85: 1.44 SF/Sheet | Q85: Stock | R85: c | S85: =IF(Suggested="Yes",'Price List'!AA85,'Price List'!AG85) -> 39.85 | T85: SF | U85: =+Instructions!$B$3 -> B | W85: =+Instructions!$C$22 -> 0 | X85: =ROUND($AA85*(1-W85)+0.004999,2) -> 39.85 | AA85: 39.85 | AB85: =+W85 -> 0 | AC85: =+X85 -> 39.85 | AD85: =(AG85-AC85)/AG85 -> 0 | AF85: 3 | AG85: =SUM(AJ85:AL85)+AE85 -> 39.85 | AJ85: =ROUND(AC85/(1-VLOOKUP(AF85,Group,2,FALSE)),2) -> 39.85 | AK85: =IF(VLOOKUP(AF85,Group,5,FALSE)="YES",VLOOKUP(ROUND(ROUND(AJ85,1)-AJ85,2),Round,2,FALSE)+VLOOKUP(AF85,Group,6,FALSE),0) -> 0 | AL85: =IF(VLOOKUP(AF85,Group,7,FALSE)="",0,ROUND(AJ85-0.04999,1)-AJ85+AM85) -> 0 | AM85: =IF(VLOOKUP(AF85,Group,7,FALSE)="","",VLOOKUP(AF85,Group,7,FALSE)) ->  | AO85: X
B86: Decos | E86: 12" x 12" | G86: Mosaic | I86: Intreccio Basketweave | P86: .97 SF/Sheet | Q86: Stock | R86: c | S86: =IF(Suggested="Yes",'Price List'!AA86,'Price List'!AG86) -> 26.1 | T86: SF | U86: =+Instructions!$B$3 -> B | W86: =+Instructions!$C$22 -> 0 | X86: 26.1 | AA86: 26.1 | AB86: 0 | AC86: 26.1 | AD86: 0 | AF86: 3 | AG86: 26.1 | AJ86: 26.1 | AK86: 0 | AL86: 0 | AO86: X
B87: Decos | E87: 11" x 11" | G87: Mosaic | I87: Lisca Herringbone | P87: .84 SF/Sheet | Q87: Stock | R87: c | S87: =IF(Suggested="Yes",'Price List'!AA87,'Price List'!AG87) -> 24.95 | T87: SF | U87: =+Instructions!$B$3 -> B | W87: =+Instructions!$C$22 -> 0 | X87: 24.95 | AA87: 24.95 | AB87: 0 | AC87: 24.95 | AD87: 0 | AF87: 3 | AG87: 24.95 | AJ87: 24.95 | AK87: 0 | AL87: 0 | AO87: X
B88: Decos | E88: 12" x 12" | G88: Mosaic | I88: Pinwheel Basket | P88: 9.70 SF/CTN | S88: =IF(Suggested="Yes",'Price List'!AA88,'Price List'!AG88) -> 26.1 | T88: SF | U88: =+Instructions!$B$3 -> B | W88: =+Instructions!$C$22 -> 0 | X88: =ROUND($AA88*(1-W88)+0.004999,2) -> 26.1 | AA88: 26.1 | AB88: =+W88 -> 0 | AC88: =+X88 -> 26.1 | AD88: =(AG88-AC88)/AG88 -> 0 | AF88: 3 | AG88: =SUM(AJ88:AL88)+AE88 -> 26.1 | AJ88: =ROUND(AC88/(1-VLOOKUP(AF88,Group,2,FALSE)),2) -> 26.1 | AK88: =IF(VLOOKUP(AF88,Group,5,FALSE)="YES",VLOOKUP(ROUND(ROUND(AJ88,1)-AJ88,2),Round,2,FALSE)+VLOOKUP(AF88,Group,6,FALSE),0) -> 0 | AL88: =IF(VLOOKUP(AF88,Group,7,FALSE)="",0,ROUND(AJ88-0.04999,1)-AJ88+AM88) -> 0 | AM88: =IF(VLOOKUP(AF88,Group,7,FALSE)="","",VLOOKUP(AF88,Group,7,FALSE)) ->  | AO88: X
B89: Decos | E89: 12" x 15" | G89: Mosaic | I89: Round Arch | P89: 7.26 SF/CTN | S89: =IF(Suggested="Yes",'Price List'!AA89,'Price List'!AG89) -> 37.15 | T89: SF | U89: =+Instructions!$B$3 -> B | W89: =+Instructions!$C$22 -> 0 | X89: =ROUND($AA89*(1-W89)+0.004999,2) -> 37.15 | AA89: 37.15 | AB89: =+W89 -> 0 | AC89: =+X89 -> 37.15 | AD89: =(AG89-AC89)/AG89 -> 0 | AF89: 3 | AG89: =SUM(AJ89:AL89)+AE89 -> 37.15 | AJ89: =ROUND(AC89/(1-VLOOKUP(AF89,Group,2,FALSE)),2) -> 37.15 | AK89: =IF(VLOOKUP(AF89,Group,5,FALSE)="YES",VLOOKUP(ROUND(ROUND(AJ89,1)-AJ89,2),Round,2,FALSE)+VLOOKUP(AF89,Group,6,FALSE),0) -> 0 | AL89: =IF(VLOOKUP(AF89,Group,7,FALSE)="",0,ROUND(AJ89-0.04999,1)-AJ89+AM89) -> 0 | AM89: =IF(VLOOKUP(AF89,Group,7,FALSE)="","",VLOOKUP(AF89,Group,7,FALSE)) ->  | AO89: X
B91: Trim | E91: 3" x 24" | G91: Bullnose | Q91: Stock | S91: =IF(Suggested="Yes",'Price List'!AA91,'Price List'!AG91) -> 17.05 | T91: EA | U91: =+Instructions!$B$3 -> B | W91: =+Instructions!$C$22 -> 0 | X91: =ROUND($AA91*(1-W91)+0.004999,2) -> 17.05 | AA91: 17.05 | AB91: =+W91 -> 0 | AC91: =+X91 -> 17.05 | AD91: =(AG91-AC91)/AG91 -> 0 | AF91: 2 | AG91: =SUM(AJ91:AL91)+AE91 -> 17.05 | AJ91: =ROUND(AC91/(1-VLOOKUP(AF91,Group,2,FALSE)),2) -> 17.05 | AK91: =IF(VLOOKUP(AF91,Group,5,FALSE)="YES",VLOOKUP(ROUND(ROUND(AJ91,1)-AJ91,2),Round,2,FALSE)+VLOOKUP(AF91,Group,6,FALSE),0) -> 0 | AL91: =IF(VLOOKUP(AF91,Group,7,FALSE)="",0,ROUND(AJ91-0.04999,1)-AJ91+AM91) -> 0 | AM91: =IF(VLOOKUP(AF91,Group,7,FALSE)="","",VLOOKUP(AF91,Group,7,FALSE)) ->  | AO91: X
D93: Notes: | E93: a) Not stocked in color Scenic White.
E94: b) Not available in color Onice Bianco.
E95: c) Not stocked in colors Marquina Shiny and Scenic White.
C97: MICHELANGELO - Glazed Porcelain | J97: DISCONTINUED 10/23/2024 | R97: Item # Lookup: | S97: NVMI
AO98: X
D99: Color: | E99: Bianco Arabescato
AO100: X
B101: Field Tile | D101: Natural: | E101: 3" x 12" | G101: Field | P101: 6.78 SF/CTN | Q101: Stock | S101: =IF(Suggested="Yes",'Price List'!AA101,'Price List'!AG101) -> 8.9 | T101: SF | U101: =+Instructions!$B$3 -> B | W101: =+Instructions!$C$22 -> 0 | X101: =ROUND($AA101*(1-W101)+0.004999,2) -> 8.9 | AA101: 8.9 | AB101: =+W101 -> 0 | AC101: =+X101 -> 8.9 | AD101: =(AG101-AC101)/AG101 -> 0 | AF101: 1 | AG101: =SUM(AJ101:AL101)+AE101 -> 8.9 | AJ101: =ROUND(AC101/(1-VLOOKUP(AF101,Group,2,FALSE)),2) -> 8.9 | AK101: =IF(VLOOKUP(AF101,Group,5,FALSE)="YES",VLOOKUP(ROUND(ROUND(AJ101,1)-AJ101,2),Round,2,FALSE)+VLOOKUP(AF101,Group,6,FALSE),0) -> 0 | AL101: =IF(VLOOKUP(AF101,Group,7,FALSE)="",0,ROUND(AJ101-0.04999,1)-AJ101+AM101) -> 0 | AM101: =IF(VLOOKUP(AF101,Group,7,FALSE)="","",VLOOKUP(AF101,Group,7,FALSE)) ->  | AO101: X
B102: Field Tile | E102: 12" x 24" | G102: Field | P102: 11.62 SF/CTN | Q102: Stock | S102: =IF(Suggested="Yes",'Price List'!AA102,'Price List'!AG102) -> 6.95 | T102: SF | U102: =+Instructions!$B$3 -> B | W102: =+Instructions!$C$22 -> 0 | X102: =ROUND($AA102*(1-W102)+0.004999,2) -> 6.95 | AA102: 6.95 | AB102: =+W102 -> 0 | AC102: =+X102 -> 6.95 | AD102: =(AG102-AC102)/AG102 -> 0 | AF102: 1 | AG102: =SUM(AJ102:AL102)+AE102 -> 6.95 | AJ102: =ROUND(AC102/(1-VLOOKUP(AF102,Group,2,FALSE)),2) -> 6.95 | AK102: =IF(VLOOKUP(AF102,Group,5,FALSE)="YES",VLOOKUP(ROUND(ROUND(AJ102,1)-AJ102,2),Round,2,FALSE)+VLOOKUP(AF102,Group,6,FALSE),0) -> 0 | AL102: =IF(VLOOKUP(AF102,Group,7,FALSE)="",0,ROUND(AJ102-0.04999,1)-AJ102+AM102) -> 0 | AM102: =IF(VLOOKUP(AF102,Group,7,FALSE)="","",VLOOKUP(AF102,Group,7,FALSE)) ->  | AO102: X
AO103: X
B104: Decos | E104: 12" x 12" | G104: Mosaic | I104: 2" x 2" | L104: mesh-mounted | P104: 0.97 SF/Sheet | Q104: Stock | S104: =IF(Suggested="Yes",'Price List'!AA104,'Price List'!AG104) -> 18.7 | T104: SF | U104: =+Instructions!$B$3 -> B | W104: =+Instructions!$C$22 -> 0 | X104: =ROUND($AA104*(1-W104)+0.004999,2) -> 18.7 | AA104: 18.7 | AB104: =+W104 -> 0 | AC104: =+X104 -> 18.7 | AD104: =(AG104-AC104)/AG104 -> 0 | AF104: 3 | AG104: =SUM(AJ104:AL104)+AE104 -> 18.7 | AJ104: =ROUND(AC104/(1-VLOOKUP(AF104,Group,2,FALSE)),2) -> 18.7 | AK104: =IF(VLOOKUP(AF104,Group,5,FALSE)="YES",VLOOKUP(ROUND(ROUND(AJ104,1)-AJ104,2),Round,2,FALSE)+VLOOKUP(AF104,Group,6,FALSE),0) -> 0 | AL104: =IF(VLOOKUP(AF104,Group,7,FALSE)="",0,ROUND(AJ104-0.04999,1)-AJ104+AM104) -> 0 | AM104: =IF(VLOOKUP(AF104,Group,7,FALSE)="","",VLOOKUP(AF104,Group,7,FALSE)) ->  | AO104: X
B105: Decos | E105: 12" x 12" | G105: Mosaic | I105: Intreccio | L105: mesh-mounted | P105: 0.97 SF/Sheet | Q105: Stock | S105: =IF(Suggested="Yes",'Price List'!AA105,'Price List'!AG105) -> 20.3 | T105: SF | U105: =+Instructions!$B$3 -> B | W105: =+Instructions!$C$22 -> 0 | X105: =ROUND($AA105*(1-W105)+0.004999,2) -> 20.3 | AA105: 20.3 | AB105: =+W105 -> 0 | AC105: =+X105 -> 20.3 | AD105: =(AG105-AC105)/AG105 -> 0 | AF105: 3 | AG105: =SUM(AJ105:AL105)+AE105 -> 20.3 | AJ105: =ROUND(AC105/(1-VLOOKUP(AF105,Group,2,FALSE)),2) -> 20.3 | AK105: =IF(VLOOKUP(AF105,Group,5,FALSE)="YES",VLOOKUP(ROUND(ROUND(AJ105,1)-AJ105,2),Round,2,FALSE)+VLOOKUP(AF105,Group,6,FALSE),0) -> 0 | AL105: =IF(VLOOKUP(AF105,Group,7,FALSE)="",0,ROUND(AJ105-0.04999,1)-AJ105+AM105) -> 0 | AM105: =IF(VLOOKUP(AF105,Group,7,FALSE)="","",VLOOKUP(AF105,Group,7,FALSE)) ->  | AO105: X
AO106: X
B107: Trim | E107: 3" x 24" | G107: Bullnose | Q107: Stock | S107: =IF(Suggested="Yes",'Price List'!AA107,'Price List'!AG107) -> 15.3 | T107: EA | U107: =+Instructions!$B$3 -> B | W107: =+Instructions!$C$22 -> 0 | X107: =ROUND($AA107*(1-W107)+0.004999,2) -> 15.3 | AA107: 15.3 | AB107: =+W107 -> 0 | AC107: =+X107 -> 15.3 | AD107: =(AG107-AC107)/AG107 -> 0 | AF107: 2 | AG107: =SUM(AJ107:AL107)+AE107 -> 15.3 | AJ107: =ROUND(AC107/(1-VLOOKUP(AF107,Group,2,FALSE)),2) -> 15.3 | AK107: =IF(VLOOKUP(AF107,Group,5,FALSE)="YES",VLOOKUP(ROUND(ROUND(AJ107,1)-AJ107,2),Round,2,FALSE)+VLOOKUP(AF107,Group,6,FALSE),0) -> 0 | AL107: =IF(VLOOKUP(AF107,Group,7,FALSE)="",0,ROUND(AJ107-0.04999,1)-AJ107+AM107) -> 0 | AM107: =IF(VLOOKUP(AF107,Group,7,FALSE)="","",VLOOKUP(AF107,Group,7,FALSE)) ->  | AO107: X
AO108: X
B109: Field Tile | D109: Polished: | E109: 3" x 12" | G109: Field | P109: 6.78 SF/CTN | Q109: Stock | S109: =IF(Suggested="Yes",'Price List'!AA109,'Price List'!AG109) -> 10.85 | T109: SF | U109: =+Instructions!$B$3 -> B | W109: =+Instructions!$C$22 -> 0 | X109: =ROUND($AA109*(1-W109)+0.004999,2) -> 10.85 | AA109: 10.85 | AB109: =+W109 -> 0 | AC109: 10.85 | AD109: =(AG109-AC109)/AG109 -> 0 | AF109: 1 | AG109: =SUM(AJ109:AL109)+AE109 -> 10.85 | AJ109: =ROUND(AC109/(1-VLOOKUP(AF109,Group,2,FALSE)),2) -> 10.85 | AK109: =IF(VLOOKUP(AF109,Group,5,FALSE)="YES",VLOOKUP(ROUND(ROUND(AJ109,1)-AJ109,2),Round,2,FALSE)+VLOOKUP(AF109,Group,6,FALSE),0) -> 0 | AL109: =IF(VLOOKUP(AF109,Group,7,FALSE)="",0,ROUND(AJ109-0.04999,1)-AJ109+AM109) -> 0 | AM109: =IF(VLOOKUP(AF109,Group,7,FALSE)="","",VLOOKUP(AF109,Group,7,FALSE)) ->  | AO109: X
B110: Field Tile | E110: 12" x 24" | G110: Field | P110: 11.62 SF/CTN | Q110: Stock | S110: =IF(Suggested="Yes",'Price List'!AA110,'Price List'!AG110) -> 9.55 | T110: SF | U110: =+Instructions!$B$3 -> B | W110: =+Instructions!$C$22 -> 0 | X110: =ROUND($AA110*(1-W110)+0.004999,2) -> 9.55 | AA110: 9.55 | AB110: 0 | AC110: 9.55 | AD110: =(AG110-AC110)/AG110 -> 0 | AF110: 1 | AG110: =SUM(AJ110:AL110)+AE110 -> 9.55 | AJ110: =ROUND(AC110/(1-VLOOKUP(AF110,Group,2,FALSE)),2) -> 9.55 | AK110: =IF(VLOOKUP(AF110,Group,5,FALSE)="YES",VLOOKUP(ROUND(ROUND(AJ110,1)-AJ110,2),Round,2,FALSE)+VLOOKUP(AF110,Group,6,FALSE),0) -> 0 | AL110: =IF(VLOOKUP(AF110,Group,7,FALSE)="",0,ROUND(AJ110-0.04999,1)-AJ110+AM110) -> 0 | AM110: =IF(VLOOKUP(AF110,Group,7,FALSE)="","",VLOOKUP(AF110,Group,7,FALSE)) ->  | AO110: X
B111: Field Tile | E111: 24" x 48" | G111: Field | P111: 15.49 SF/CTN | Q111: Stock | S111: =IF(Suggested="Yes",'Price List'!AA111,'Price List'!AG111) -> 11.3 | T111: SF | U111: =+Instructions!$B$3 -> B | W111: =+Instructions!$C$22 -> 0 | X111: =ROUND($AA111*(1-W111)+0.004999,2) -> 11.3 | AA111: 11.3 | AB111: 0 | AC111: 11.3 | AD111: =(AG111-AC111)/AG111 -> 0 | AF111: 1 | AG111: =SUM(AJ111:AL111)+AE111 -> 11.3 | AJ111: =ROUND(AC111/(1-VLOOKUP(AF111,Group,2,FALSE)),2) -> 11.3 | AK111: =IF(VLOOKUP(AF111,Group,5,FALSE)="YES",VLOOKUP(ROUND(ROUND(AJ111,1)-AJ111,2),Round,2,FALSE)+VLOOKUP(AF111,Group,6,FALSE),0) -> 0 | AL111: =IF(VLOOKUP(AF111,Group,7,FALSE)="",0,ROUND(AJ111-0.04999,1)-AJ111+AM111) -> 0 | AM111: =IF(VLOOKUP(AF111,Group,7,FALSE)="","",VLOOKUP(AF111,Group,7,FALSE)) ->  | AO111: X
AO112: X
B113: Decos | E113: 12" x 12" | G113: Mosaic | I113: Intreccio | L113: mesh-mounted | P113: 0.97 SF/Sheet | Q113: Stock | S113: =IF(Suggested="Yes",'Price List'!AA113,'Price List'!AG113) -> 22.15 | T113: SF | U113: =+Instructions!$B$3 -> B | W113: =+Instructions!$C$22 -> 0 | X113: =ROUND($AA113*(1-W113)+0.004999,2) -> 22.15 | AA113: 22.15 | AB113: =+W113 -> 0 | AC113: 22.15 | AD113: =(AG113-AC113)/AG113 -> 0 | AF113: 3 | AG113: =SUM(AJ113:AL113)+AE113 -> 22.15 | AJ113: =ROUND(AC113/(1-VLOOKUP(AF113,Group,2,FALSE)),2) -> 22.15 | AK113: =IF(VLOOKUP(AF113,Group,5,FALSE)="YES",VLOOKUP(ROUND(ROUND(AJ113,1)-AJ113,2),Round,2,FALSE)+VLOOKUP(AF113,Group,6,FALSE),0) -> 0 | AL113: =IF(VLOOKUP(AF113,Group,7,FALSE)="",0,ROUND(AJ113-0.04999,1)-AJ113+AM113) -> 0 | AM113: =IF(VLOOKUP(AF113,Group,7,FALSE)="","",VLOOKUP(AF113,Group,7,FALSE)) ->  | AO113: X
B114: Decos | E114: 10" x 10" | G114: Mosaic | I114: Losanga | L114: mesh-mounted | P114: 0.73 SF/Sheet | Q114: Stock | S114: =IF(Suggested="Yes",'Price List'!AA114,'Price List'!AG114) -> 40.15 | T114: SF | U114: =+Instructions!$B$3 -> B | W114: =+Instructions!$C$22 -> 0 | X114: =ROUND($AA114*(1-W114)+0.004999,2) -> 40.15 | AA114: 40.15 | AB114: 0 | AC114: 40.15 | AD114: =(AG114-AC114)/AG114 -> 0 | AF114: 3 | AG114: =SUM(AJ114:AL114)+AE114 -> 40.15 | AJ114: =ROUND(AC114/(1-VLOOKUP(AF114,Group,2,FALSE)),2) -> 40.15 | AK114: =IF(VLOOKUP(AF114,Group,5,FALSE)="YES",VLOOKUP(ROUND(ROUND(AJ114,1)-AJ114,2),Round,2,FALSE)+VLOOKUP(AF114,Group,6,FALSE),0) -> 0 | AL114: =IF(VLOOKUP(AF114,Group,7,FALSE)="",0,ROUND(AJ114-0.04999,1)-AJ114+AM114) -> 0 | AM114: =IF(VLOOKUP(AF114,Group,7,FALSE)="","",VLOOKUP(AF114,Group,7,FALSE)) ->  | AO114: X
B115: Decos | E115: 12" x 13" | G115: Mosaic | I115: Zig-Zag | L115: mesh-mounted | P115: 0.97 SF/Sheet | Q115: Stock | S115: =IF(Suggested="Yes",'Price List'!AA115,'Price List'!AG115) -> 34.1 | T115: SF | U115: =+Instructions!$B$3 -> B | W115: =+Instructions!$C$22 -> 0 | X115: =ROUND($AA115*(1-W115)+0.004999,2) -> 34.1 | AA115: 34.1 | AB115: 0 | AC115: 34.1 | AD115: =(AG115-AC115)/AG115 -> 0 | AF115: 3 | AG115: =SUM(AJ115:AL115)+AE115 -> 34.1 | AJ115: =ROUND(AC115/(1-VLOOKUP(AF115,Group,2,FALSE)),2) -> 34.1 | AK115: =IF(VLOOKUP(AF115,Group,5,FALSE)="YES",VLOOKUP(ROUND(ROUND(AJ115,1)-AJ115,2),Round,2,FALSE)+VLOOKUP(AF115,Group,6,FALSE),0) -> 0 | AL115: =IF(VLOOKUP(AF115,Group,7,FALSE)="",0,ROUND(AJ115-0.04999,1)-AJ115+AM115) -> 0 | AM115: =IF(VLOOKUP(AF115,Group,7,FALSE)="","",VLOOKUP(AF115,Group,7,FALSE)) ->  | AO115: X
AO116: X
B117: Trim | E117: 3" x 24" | G117: Bullnose | Q117: Stock | S117: =IF(Suggested="Yes",'Price List'!AA117,'Price List'!AG117) -> 17.05 | T117: EA | U117: =+Instructions!$B$3 -> B | W117: =+Instructions!$C$22 -> 0 | X117: =ROUND($AA117*(1-W117)+0.004999,2) -> 17.05 | AA117: 17.05 | AB117: =+W117 -> 0 | AC117: =+X117 -> 17.05 | AD117: =(AG117-AC117)/AG117 -> 0 | AF117: 2 | AG117: =SUM(AJ117:AL117)+AE117 -> 17.05 | AJ117: =ROUND(AC117/(1-VLOOKUP(AF117,Group,2,FALSE)),2) -> 17.05 | AK117: =IF(VLOOKUP(AF117,Group,5,FALSE)="YES",VLOOKUP(ROUND(ROUND(AJ117,1)-AJ117,2),Round,2,FALSE)+VLOOKUP(AF117,Group,6,FALSE),0) -> 0 | AL117: =IF(VLOOKUP(AF117,Group,7,FALSE)="",0,ROUND(AJ117-0.04999,1)-AJ117+AM117) -> 0 | AM117: =IF(VLOOKUP(AF117,Group,7,FALSE)="","",VLOOKUP(AF117,Group,7,FALSE)) ->  | AO117: X
AO118: X
D119: Color: | E119: Grigio Visone
AO120: X
B121: Field Tile | D121: Natural: | E121: 3" x 12" | G121: Field | P121: 6.78 SF/CTN | Q121: Stock | S121: =IF(Suggested="Yes",'Price List'!AA121,'Price List'!AG121) -> 8.9 | T121: SF | U121: =+Instructions!$B$3 -> B | W121: =+Instructions!$C$22 -> 0 | X121: =ROUND($AA121*(1-W121)+0.004999,2) -> 8.9 | AA121: 8.9 | AB121: =+W121 -> 0 | AC121: =+X121 -> 8.9 | AD121: =(AG121-AC121)/AG121 -> 0 | AF121: 1 | AG121: =SUM(AJ121:AL121)+AE121 -> 8.9 | AJ121: =ROUND(AC121/(1-VLOOKUP(AF121,Group,2,FALSE)),2) -> 8.9 | AK121: =IF(VLOOKUP(AF121,Group,5,FALSE)="YES",VLOOKUP(ROUND(ROUND(AJ121,1)-AJ121,2),Round,2,FALSE)+VLOOKUP(AF121,Group,6,FALSE),0) -> 0 | AL121: =IF(VLOOKUP(AF121,Group,7,FALSE)="",0,ROUND(AJ121-0.04999,1)-AJ121+AM121) -> 0 | AM121: =IF(VLOOKUP(AF121,Group,7,FALSE)="","",VLOOKUP(AF121,Group,7,FALSE)) ->  | AO121: X
B122: Field Tile | E122: 12" x 24" | G122: Field | P122: 11.62 SF/CTN | Q122: Stock | S122: =IF(Suggested="Yes",'Price List'!AA122,'Price List'!AG122) -> 6.95 | T122: SF | U122: =+Instructions!$B$3 -> B | W122: =+Instructions!$C$22 -> 0 | X122: =ROUND($AA122*(1-W122)+0.004999,2) -> 6.95 | AA122: 6.95 | AB122: =+W122 -> 0 | AC122: =+X122 -> 6.95 | AD122: =(AG122-AC122)/AG122 -> 0 | AF122: 1 | AG122: =SUM(AJ122:AL122)+AE122 -> 6.95 | AJ122: =ROUND(AC122/(1-VLOOKUP(AF122,Group,2,FALSE)),2) -> 6.95 | AK122: =IF(VLOOKUP(AF122,Group,5,FALSE)="YES",VLOOKUP(ROUND(ROUND(AJ122,1)-AJ122,2),Round,2,FALSE)+VLOOKUP(AF122,Group,6,FALSE),0) -> 0 | AL122: =IF(VLOOKUP(AF122,Group,7,FALSE)="",0,ROUND(AJ122-0.04999,1)-AJ122+AM122) -> 0 | AM122: =IF(VLOOKUP(AF122,Group,7,FALSE)="","",VLOOKUP(AF122,Group,7,FALSE)) ->  | AO122: X
AO123: X
B124: Decos | E124: 12" x 12" | G124: Mosaic | I124: 2" x 2" | L124: mesh-mounted | P124: 0.97 SF/Sheet | Q124: Stock | S124: =IF(Suggested="Yes",'Price List'!AA124,'Price List'!AG124) -> 18.7 | T124: SF | U124: =+Instructions!$B$3 -> B | W124: =+Instructions!$C$22 -> 0 | X124: =ROUND($AA124*(1-W124)+0.004999,2) -> 18.7 | AA124: 18.7 | AB124: =+W124 -> 0 | AC124: =+X124 -> 18.7 | AD124: =(AG124-AC124)/AG124 -> 0 | AF124: 3 | AG124: =SUM(AJ124:AL124)+AE124 -> 18.7 | AJ124: =ROUND(AC124/(1-VLOOKUP(AF124,Group,2,FALSE)),2) -> 18.7 | AK124: =IF(VLOOKUP(AF124,Group,5,FALSE)="YES",VLOOKUP(ROUND(ROUND(AJ124,1)-AJ124,2),Round,2,FALSE)+VLOOKUP(AF124,Group,6,FALSE),0) -> 0 | AL124: =IF(VLOOKUP(AF124,Group,7,FALSE)="",0,ROUND(AJ124-0.04999,1)-AJ124+AM124) -> 0 | AM124: =IF(VLOOKUP(AF124,Group,7,FALSE)="","",VLOOKUP(AF124,Group,7,FALSE)) ->  | AO124: X
AO125: X
B126: Trim | E126: 3" x 24" | G126: Bullnose | Q126: Stock | S126: =IF(Suggested="Yes",'Price List'!AA126,'Price List'!AG126) -> 15.3 | T126: EA | U126: =+Instructions!$B$3 -> B | W126: =+Instructions!$C$22 -> 0 | X126: =ROUND($AA126*(1-W126)+0.004999,2) -> 15.3 | AA126: 15.3 | AB126: =+W126 -> 0 | AC126: =+X126 -> 15.3 | AD126: =(AG126-AC126)/AG126 -> 0 | AF126: 2 | AG126: =SUM(AJ126:AL126)+AE126 -> 15.3 | AJ126: =ROUND(AC126/(1-VLOOKUP(AF126,Group,2,FALSE)),2) -> 15.3 | AK126: =IF(VLOOKUP(AF126,Group,5,FALSE)="YES",VLOOKUP(ROUND(ROUND(AJ126,1)-AJ126,2),Round,2,FALSE)+VLOOKUP(AF126,Group,6,FALSE),0) -> 0 | AL126: =IF(VLOOKUP(AF126,Group,7,FALSE)="",0,ROUND(AJ126-0.04999,1)-AJ126+AM126) -> 0 | AM126: =IF(VLOOKUP(AF126,Group,7,FALSE)="","",VLOOKUP(AF126,Group,7,FALSE)) ->  | AO126: X
AO127: X
B128: Field Tile | D128: Polished: | E128: 3" x 12" | G128: Field | P128: 6.78 SF/CTN | Q128: Stock | S128: =IF(Suggested="Yes",'Price List'!AA128,'Price List'!AG128) -> 10.85 | T128: SF | U128: =+Instructions!$B$3 -> B | W128: =+Instructions!$C$22 -> 0 | X128: =ROUND($AA128*(1-W128)+0.004999,2) -> 10.85 | AA128: 10.85 | AB128: =+W128 -> 0 | AC128: 10.85 | AD128: =(AG128-AC128)/AG128 -> 0 | AF128: 1 | AG128: =SUM(AJ128:AL128)+AE128 -> 10.85 | AJ128: =ROUND(AC128/(1-VLOOKUP(AF128,Group,2,FALSE)),2) -> 10.85 | AK128: =IF(VLOOKUP(AF128,Group,5,FALSE)="YES",VLOOKUP(ROUND(ROUND(AJ128,1)-AJ128,2),Round,2,FALSE)+VLOOKUP(AF128,Group,6,FALSE),0) -> 0 | AL128: =IF(VLOOKUP(AF128,Group,7,FALSE)="",0,ROUND(AJ128-0.04999,1)-AJ128+AM128) -> 0 | AM128: =IF(VLOOKUP(AF128,Group,7,FALSE)="","",VLOOKUP(AF128,Group,7,FALSE)) ->  | AO128: X
B129: Field Tile | E129: 12" x 24" | G129: Field | P129: 11.62 SF/CTN | Q129: Stock | S129: =IF(Suggested="Yes",'Price List'!AA129,'Price List'!AG129) -> 9.55 | T129: SF | U129: =+Instructions!$B$3 -> B | W129: =+Instructions!$C$22 -> 0 | X129: =ROUND($AA129*(1-W129)+0.004999,2) -> 9.55 | AA129: 9.55 | AB129: 0 | AC129: 9.55 | AD129: =(AG129-AC129)/AG129 -> 0 | AF129: 1 | AG129: =SUM(AJ129:AL129)+AE129 -> 9.55 | AJ129: =ROUND(AC129/(1-VLOOKUP(AF129,Group,2,FALSE)),2) -> 9.55 | AK129: =IF(VLOOKUP(AF129,Group,5,FALSE)="YES",VLOOKUP(ROUND(ROUND(AJ129,1)-AJ129,2),Round,2,FALSE)+VLOOKUP(AF129,Group,6,FALSE),0) -> 0 | AL129: =IF(VLOOKUP(AF129,Group,7,FALSE)="",0,ROUND(AJ129-0.04999,1)-AJ129+AM129) -> 0 | AM129: =IF(VLOOKUP(AF129,Group,7,FALSE)="","",VLOOKUP(AF129,Group,7,FALSE)) ->  | AO129: X
B130: Field Tile | E130: 24" x 48" | G130: Field | P130: 15.49 SF/CTN | Q130: Stock | S130: =IF(Suggested="Yes",'Price List'!AA130,'Price List'!AG130) -> 11.3 | T130: SF | U130: =+Instructions!$B$3 -> B | W130: =+Instructions!$C$22 -> 0 | X130: =ROUND($AA130*(1-W130)+0.004999,2) -> 11.3 | AA130: 11.3 | AB130: 0 | AC130: 11.3 | AD130: =(AG130-AC130)/AG130 -> 0 | AF130: 1 | AG130: =SUM(AJ130:AL130)+AE130 -> 11.3 | AJ130: =ROUND(AC130/(1-VLOOKUP(AF130,Group,2,FALSE)),2) -> 11.3 | AK130: =IF(VLOOKUP(AF130,Group,5,FALSE)="YES",VLOOKUP(ROUND(ROUND(AJ130,1)-AJ130,2),Round,2,FALSE)+VLOOKUP(AF130,Group,6,FALSE),0) -> 0 | AL130: =IF(VLOOKUP(AF130,Group,7,FALSE)="",0,ROUND(AJ130-0.04999,1)-AJ130+AM130) -> 0 | AM130: =IF(VLOOKUP(AF130,Group,7,FALSE)="","",VLOOKUP(AF130,Group,7,FALSE)) ->  | AO130: X
AO131: X
B132: Trim | E132: 3" x 24" | G132: Bullnose | Q132: Stock | S132: =IF(Suggested="Yes",'Price List'!AA132,'Price List'!AG132) -> 17.05 | T132: EA | U132: =+Instructions!$B$3 -> B | W132: =+Instructions!$C$22 -> 0 | X132: =ROUND($AA132*(1-W132)+0.004999,2) -> 17.05 | AA132: 17.05 | AB132: =+W132 -> 0 | AC132: =+X132 -> 17.05 | AD132: =(AG132-AC132)/AG132 -> 0 | AF132: 2 | AG132: =SUM(AJ132:AL132)+AE132 -> 17.05 | AJ132: =ROUND(AC132/(1-VLOOKUP(AF132,Group,2,FALSE)),2) -> 17.05 | AK132: =IF(VLOOKUP(AF132,Group,5,FALSE)="YES",VLOOKUP(ROUND(ROUND(AJ132,1)-AJ132,2),Round,2,FALSE)+VLOOKUP(AF132,Group,6,FALSE),0) -> 0 | AL132: =IF(VLOOKUP(AF132,Group,7,FALSE)="",0,ROUND(AJ132-0.04999,1)-AJ132+AM132) -> 0 | AM132: =IF(VLOOKUP(AF132,Group,7,FALSE)="","",VLOOKUP(AF132,Group,7,FALSE)) ->  | AO132: X
AO133: X
D134: Color: | E134: Spaccatella
AO135: X
B136: Field Tile | D136: Polished: | E136: 12" x 24" | G136: Field | P136: 11.62 SF/CTN | Q136: Stock | S136: =IF(Suggested="Yes",'Price List'!AA136,'Price List'!AG136) -> 9.55 | T136: SF | U136: =+Instructions!$B$3 -> B | W136: =+Instructions!$C$22 -> 0 | X136: =ROUND($AA136*(1-W136)+0.004999,2) -> 9.55 | AA136: 9.55 | AB136: =+W136 -> 0 | AC136: =+X136 -> 9.55 | AD136: =(AG136-AC136)/AG136 -> 0 | AF136: 1 | AG136: =SUM(AJ136:AL136)+AE136 -> 9.55 | AJ136: =ROUND(AC136/(1-VLOOKUP(AF136,Group,2,FALSE)),2) -> 9.55 | AK136: =IF(VLOOKUP(AF136,Group,5,FALSE)="YES",VLOOKUP(ROUND(ROUND(AJ136,1)-AJ136,2),Round,2,FALSE)+VLOOKUP(AF136,Group,6,FALSE),0) -> 0 | AL136: =IF(VLOOKUP(AF136,Group,7,FALSE)="",0,ROUND(AJ136-0.04999,1)-AJ136+AM136) -> 0 | AM136: =IF(VLOOKUP(AF136,Group,7,FALSE)="","",VLOOKUP(AF136,Group,7,FALSE)) ->  | AO136: X
AO137: X
C138: SOVEREIGN - Glazed Porcelain | R138: Item # Lookup: | S138: NVSO
AO139: X
D140: Colors: | E140: Avorio Beige Grigio Chiaro Antracite & Tabacco (DISCONTINUED 11/4/24)
AO141: X
B142: Field Tile | E142: 4" x 12" | G142: Field | P142: 9.04 SF/CTN | S142: =IF(Suggested="Yes",'Price List'!AA142,'Price List'!AG142) -> 9.15 | T142: SF | U142: =+Instructions!$B$3 -> B | W142: =+Instructions!$C$22 -> 0 | X142: =ROUND($AA142*(1-W142)+0.004999,2) -> 9.15 | AA142: 9.15 | AB142: =+W142 -> 0 | AC142: =+X142 -> 9.15 | AD142: =(AG142-AC142)/AG142 -> 0 | AF142: 1 | AG142: =SUM(AJ142:AL142)+AE142 -> 9.15 | AJ142: =ROUND(AC142/(1-VLOOKUP(AF142,Group,2,FALSE)),2) -> 9.15 | AK142: =IF(VLOOKUP(AF142,Group,5,FALSE)="YES",VLOOKUP(ROUND(ROUND(AJ142,1)-AJ142,2),Round,2,FALSE)+VLOOKUP(AF142,Group,6,FALSE),0) -> 0 | AL142: =IF(VLOOKUP(AF142,Group,7,FALSE)="",0,ROUND(AJ142-0.04999,1)-AJ142+AM142) -> 0 | AM142: =IF(VLOOKUP(AF142,Group,7,FALSE)="","",VLOOKUP(AF142,Group,7,FALSE)) ->  | AO142: X
B143: Field Tile | E143: 12" x 24" | G143: Field | P143: 13.56 SF/CTN | S143: =IF(Suggested="Yes",'Price List'!AA143,'Price List'!AG143) -> 7.05 | T143: SF | U143: =+Instructions!$B$3 -> B | W143: =+Instructions!$C$22 -> 0 | X143: 7.05 | AA143: 7.05 | AB143: 0 | AC143: 7.05 | AD143: 0 | AF143: 1 | AG143: 7.05 | AJ143: 7.05 | AK143: 0 | AL143: 0 | AO143: X
B144: Field Tile | E144: 24" x 24" | G144: Field | P144: 11.62 SF/CTN | S144: =IF(Suggested="Yes",'Price List'!AA144,'Price List'!AG144) -> 7.2 | T144: SF | U144: =+Instructions!$B$3 -> B | W144: =+Instructions!$C$22 -> 0 | X144: 7.2 | AA144: 7.2 | AB144: 0 | AC144: 7.2 | AD144: 0 | AF144: 1 | AG144: 7.2 | AJ144: 7.2 | AK144: 0 | AL144: 0 | AO144: X
B145: Field Tile | E145: 24" x 48" | G145: Field | J145: DISCONTINUED 11/4/2024 | P145: 15.49 SF/CTN | S145: =IF(Suggested="Yes",'Price List'!AA145,'Price List'!AG145) -> 7.7 | T145: SF | U145: =+Instructions!$B$3 -> B | W145: =+Instructions!$C$22 -> 0 | X145: 7.7 | AA145: 7.7 | AB145: 0 | AC145: 7.7 | AD145: 0 | AF145: 1 | AG145: 7.7 | AJ145: 7.7 | AK145: 0 | AL145: 0 | AO145: X
AO146: X
B147: Field Tile | E147: 5" x 16" | G147: Field | P147: 3.36 SF/CTN | Q147: Stock | S147: =IF(Suggested="Yes",'Price List'!AA147,'Price List'!AG147) -> 9.4 | T147: SF | U147: =+Instructions!$B$3 -> B | W147: =+Instructions!$C$22 -> 0 | X147: 9.4 | AA147: 9.4 | AB147: 0 | AC147: 9.4 | AD147: 0 | AF147: 1 | AG147: 9.4 | AJ147: 9.4 | AK147: 0 | AL147: 0 | AO147: X
B148: Field Tile | E148: 16" x 32" | G148: Field | P148: 13.77 SF/CTN | Q148: Stock | S148: =IF(Suggested="Yes",'Price List'!AA148,'Price List'!AG148) -> 7.8 | T148: SF | U148: =+Instructions!$B$3 -> B | W148: =+Instructions!$C$22 -> 0 | X148: 7.8 | AA148: 7.8 | AB148: 0 | AC148: 7.8 | AD148: 0 | AF148: 1 | AG148: 7.8 | AJ148: 7.8 | AK148: 0 | AL148: 0 | AO148: X
B149: Field Tile | E149: 32" x 32" | G149: Field | P149: 13.77 SF/CTN | S149: =IF(Suggested="Yes",'Price List'!AA149,'Price List'!AG149) -> 7.65 | T149: SF | U149: =+Instructions!$B$3 -> B | W149: =+Instructions!$C$22 -> 0 | X149: 7.65 | AA149: 7.65 | AB149: 0 | AC149: 7.65 | AD149: 0 | AF149: 1 | AG149: 7.65 | AJ149: 7.65 | AK149: 0 | AL149: 0 | AO149: X
AO150: X
B151: Decos | E151: 12" x 24" | G151: Deco Muretto | P151: 7.84 SF/CTN | S151: =IF(Suggested="Yes",'Price List'!AA151,'Price List'!AG151) -> 25.9 | T151: SF | U151: =+Instructions!$B$3 -> B | W151: =+Instructions!$C$22 -> 0 | X151: =ROUND($AA151*(1-W151)+0.004999,2) -> 25.9 | AA151: 25.9 | AB151: =+W151 -> 0 | AC151: =+X151 -> 25.9 | AD151: =(AG151-AC151)/AG151 -> 0 | AF151: 3 | AG151: =SUM(AJ151:AL151)+AE151 -> 25.9 | AJ151: =ROUND(AC151/(1-VLOOKUP(AF151,Group,2,FALSE)),2) -> 25.9 | AK151: =IF(VLOOKUP(AF151,Group,5,FALSE)="YES",VLOOKUP(ROUND(ROUND(AJ151,1)-AJ151,2),Round,2,FALSE)+VLOOKUP(AF151,Group,6,FALSE),0) -> 0 | AL151: =IF(VLOOKUP(AF151,Group,7,FALSE)="",0,ROUND(AJ151-0.04999,1)-AJ151+AM151) -> 0 | AM151: =IF(VLOOKUP(AF151,Group,7,FALSE)="","",VLOOKUP(AF151,Group,7,FALSE)) ->  | AO151: X
B152: Decos | E152: 16" x 32" | G152: Deco Dune | K152: (3.44 SF/Piece) | P152: 10.32 SF/CTN | Q152: Stock | R152: a | S152: =IF(Suggested="Yes",'Price List'!AA152,'Price List'!AG152) -> 8 | T152: SF | U152: =+Instructions!$B$3 -> B | W152: =+Instructions!$C$22 -> 0 | X152: =ROUND($AA152*(1-W152)+0.004999,2) -> 8 | AA152: 8 | AB152: =+W152 -> 0 | AC152: =+X152 -> 8 | AD152: =(AG152-AC152)/AG152 -> 0 | AF152: 3 | AG152: =SUM(AJ152:AL152)+AE152 -> 8 | AJ152: =ROUND(AC152/(1-VLOOKUP(AF152,Group,2,FALSE)),2) -> 8 | AK152: =IF(VLOOKUP(AF152,Group,5,FALSE)="YES",VLOOKUP(ROUND(ROUND(AJ152,1)-AJ152,2),Round,2,FALSE)+VLOOKUP(AF152,Group,6,FALSE),0) -> 0 | AL152: =IF(VLOOKUP(AF152,Group,7,FALSE)="",0,ROUND(AJ152-0.04999,1)-AJ152+AM152) -> 0 | AM152: =IF(VLOOKUP(AF152,Group,7,FALSE)="","",VLOOKUP(AF152,Group,7,FALSE)) ->  | AO152: X
AO153: X
B154: Decos | E154: 12" x 12" | G154: Mosaic | I154: 1" x 1" | K154: mesh-mounted (0.97 SF/Sheet) | P154: 9.70 SF/CTN | S154: =IF(Suggested="Yes",'Price List'!AA154,'Price List'!AG154) -> 19.6 | T154: SF | U154: =+Instructions!$B$3 -> B | W154: =+Instructions!$C$22 -> 0 | X154: =ROUND($AA154*(1-W154)+0.004999,2) -> 19.6 | AA154: 19.6 | AB154: =+W154 -> 0 | AC154: 19.6 | AD154: =(AG154-AC154)/AG154 -> 0 | AF154: 3 | AG154: =SUM(AJ154:AL154)+AE154 -> 19.6 | AJ154: =ROUND(AC154/(1-VLOOKUP(AF154,Group,2,FALSE)),2) -> 19.6 | AK154: =IF(VLOOKUP(AF154,Group,5,FALSE)="YES",VLOOKUP(ROUND(ROUND(AJ154,1)-AJ154,2),Round,2,FALSE)+VLOOKUP(AF154,Group,6,FALSE),0) -> 0 | AL154: =IF(VLOOKUP(AF154,Group,7,FALSE)="",0,ROUND(AJ154-0.04999,1)-AJ154+AM154) -> 0 | AM154: =IF(VLOOKUP(AF154,Group,7,FALSE)="","",VLOOKUP(AF154,Group,7,FALSE)) ->  | AO154: X
B155: Decos | E155: 12" x 12" | G155: Mosaic | I155: 2" x 2" | K155: mesh-mounted | P155: 0.97 SF/Sheet | Q155: Stock | S155: =IF(Suggested="Yes",'Price List'!AA155,'Price List'!AG155) -> 18.85 | T155: SF | U155: =+Instructions!$B$3 -> B | W155: =+Instructions!$C$22 -> 0 | X155: =ROUND($AA155*(1-W155)+0.004999,2) -> 18.85 | AA155: 18.85 | AB155: 0 | AC155: 18.85 | AD155: =(AG155-AC155)/AG155 -> 0 | AF155: 3 | AG155: =SUM(AJ155:AL155)+AE155 -> 18.85 | AJ155: =ROUND(AC155/(1-VLOOKUP(AF155,Group,2,FALSE)),2) -> 18.85 | AK155: =IF(VLOOKUP(AF155,Group,5,FALSE)="YES",VLOOKUP(ROUND(ROUND(AJ155,1)-AJ155,2),Round,2,FALSE)+VLOOKUP(AF155,Group,6,FALSE),0) -> 0 | AL155: =IF(VLOOKUP(AF155,Group,7,FALSE)="",0,ROUND(AJ155-0.04999,1)-AJ155+AM155) -> 0 | AM155: =IF(VLOOKUP(AF155,Group,7,FALSE)="","",VLOOKUP(AF155,Group,7,FALSE)) ->  | AO155: X
AO156: X
B157: Trim | E157: 2.8" x 24" | G157: Bullnose | P157: 15 EA/CTN | S157: =IF(Suggested="Yes",'Price List'!AA157,'Price List'!AG157) -> 7.2 | T157: EA | U157: =+Instructions!$B$3 -> B | W157: =+Instructions!$C$22 -> 0 | X157: =ROUND($AA157*(1-W157)+0.004999,2) -> 7.2 | AA157: 7.2 | AB157: =+W157 -> 0 | AC157: =+X157 -> 7.2 | AD157: =(AG157-AC157)/AG157 -> 0 | AF157: 2 | AG157: =SUM(AJ157:AL157)+AE157 -> 7.2 | AJ157: =ROUND(AC157/(1-VLOOKUP(AF157,Group,2,FALSE)),2) -> 7.2 | AK157: =IF(VLOOKUP(AF157,Group,5,FALSE)="YES",VLOOKUP(ROUND(ROUND(AJ157,1)-AJ157,2),Round,2,FALSE)+VLOOKUP(AF157,Group,6,FALSE),0) -> 0 | AL157: =IF(VLOOKUP(AF157,Group,7,FALSE)="",0,ROUND(AJ157-0.04999,1)-AJ157+AM157) -> 0 | AM157: =IF(VLOOKUP(AF157,Group,7,FALSE)="","",VLOOKUP(AF157,Group,7,FALSE)) ->  | AO157: X
B158: Trim | E158: 2.8" x 32" | G158: Bullnose | Q158: Stock | S158: =IF(Suggested="Yes",'Price List'!AA158,'Price List'!AG158) -> 23.6 | T158: EA | U158: =+Instructions!$B$3 -> B | W158: =+Instructions!$C$22 -> 0 | X158: =ROUND($AA158*(1-W158)+0.004999,2) -> 23.6 | AA158: 23.6 | AB158: =+W158 -> 0 | AC158: =+X158 -> 23.6 | AD158: =(AG158-AC158)/AG158 -> 0 | AF158: 2 | AG158: =SUM(AJ158:AL158)+AE158 -> 23.6 | AJ158: =ROUND(AC158/(1-VLOOKUP(AF158,Group,2,FALSE)),2) -> 23.6 | AK158: =IF(VLOOKUP(AF158,Group,5,FALSE)="YES",VLOOKUP(ROUND(ROUND(AJ158,1)-AJ158,2),Round,2,FALSE)+VLOOKUP(AF158,Group,6,FALSE),0) -> 0 | AL158: =IF(VLOOKUP(AF158,Group,7,FALSE)="",0,ROUND(AJ158-0.04999,1)-AJ158+AM158) -> 0 | AM158: =IF(VLOOKUP(AF158,Group,7,FALSE)="","",VLOOKUP(AF158,Group,7,FALSE)) ->  | AO158: X
AO159: X
D160: Notes: | E160: a) Not available in color Tabacco.
AO161: X
C162: URBE - Glazed Porcelain | R162: Item # Lookup: | S162: NVUR
AO163: X
D164: Colors: | E164: Cream Silver White Grey
AO165: X
B166: Field Tile | E166: 4" x 12" | G166: Field | P166: 9.04 SF/CTN | Q166: Stock | S166: =IF(Suggested="Yes",'Price List'!AA166,'Price List'!AG166) -> 9.5 | T166: SF | U166: =+Instructions!$B$3 -> B | W166: =+Instructions!$C$22 -> 0 | X166: =ROUND($AA166*(1-W166)+0.004999,2) -> 9.5 | AA166: 9.5 | AB166: =+W166 -> 0 | AC166: =+X166 -> 9.5 | AD166: =(AG166-AC166)/AG166 -> 0 | AF166: 1 | AG166: =SUM(AJ166:AL166)+AE166 -> 9.5 | AJ166: =ROUND(AC166/(1-VLOOKUP(AF166,Group,2,FALSE)),2) -> 9.5 | AK166: =IF(VLOOKUP(AF166,Group,5,FALSE)="YES",VLOOKUP(ROUND(ROUND(AJ166,1)-AJ166,2),Round,2,FALSE)+VLOOKUP(AF166,Group,6,FALSE),0) -> 0 | AL166: =IF(VLOOKUP(AF166,Group,7,FALSE)="",0,ROUND(AJ166-0.04999,1)-AJ166+AM166) -> 0 | AM166: =IF(VLOOKUP(AF166,Group,7,FALSE)="","",VLOOKUP(AF166,Group,7,FALSE)) ->  | AO166: X
B167: Field Tile | E167: 12" x 24" | G167: Field | P167: 13.56 SF/CTN | Q167: Stock | S167: =IF(Suggested="Yes",'Price List'!AA167,'Price List'!AG167) -> 5.95 | T167: SF | U167: =+Instructions!$B$3 -> B | W167: =+Instructions!$C$22 -> 0 | X167: 5.95 | AA167: 5.95 | AB167: 0 | AC167: 5.95 | AD167: 0 | AF167: 1 | AG167: 5.95 | AJ167: 5.95 | AK167: 0 | AL167: 0 | AO167: X
B168: Field Tile | E168: 24" x 24" | G168: Field | P168: 11.62 SF/CTN | S168: =IF(Suggested="Yes",'Price List'!AA168,'Price List'!AG168) -> 6.4 | T168: SF | U168: =+Instructions!$B$3 -> B | W168: =+Instructions!$C$22 -> 0 | X168: 6.4 | AA168: 6.4 | AB168: 0 | AC168: 6.4 | AD168: 0 | AF168: 1 | AG168: 6.4 | AJ168: 6.4 | AK168: 0 | AL168: 0 | AO168: X
B169: Field Tile | E169: 24" x 48" | G169: Field | P169: 15.49 SF/CTN | S169: =IF(Suggested="Yes",'Price List'!AA169,'Price List'!AG169) -> 7.15 | T169: SF | U169: =+Instructions!$B$3 -> B | W169: =+Instructions!$C$22 -> 0 | X169: 7.15 | AA169: 7.15 | AB169: 0 | AC169: 7.15 | AD169: 0 | AF169: 1 | AG169: 7.15 | AJ169: 7.15 | AK169: 0 | AL169: 0 | AO169: X
AO170: X
B171: Decos | E171: 12" x 12" | G171: Mosaic | I171: 2" x 2" | K171: mesh-mounted | P171: 0.97 SF/Sheet | Q171: Stock | S171: =IF(Suggested="Yes",'Price List'!AA171,'Price List'!AG171) -> 17.5 | T171: SF | U171: =+Instructions!$B$3 -> B | W171: =+Instructions!$C$22 -> 0 | X171: =ROUND($AA171*(1-W171)+0.004999,2) -> 17.5 | AA171: 17.5 | AB171: =+W171 -> 0 | AC171: =+X171 -> 17.5 | AD171: =(AG171-AC171)/AG171 -> 0 | AF171: 3 | AG171: =SUM(AJ171:AL171)+AE171 -> 17.5 | AJ171: =ROUND(AC171/(1-VLOOKUP(AF171,Group,2,FALSE)),2) -> 17.5 | AK171: =IF(VLOOKUP(AF171,Group,5,FALSE)="YES",VLOOKUP(ROUND(ROUND(AJ171,1)-AJ171,2),Round,2,FALSE)+VLOOKUP(AF171,Group,6,FALSE),0) -> 0 | AL171: =IF(VLOOKUP(AF171,Group,7,FALSE)="",0,ROUND(AJ171-0.04999,1)-AJ171+AM171) -> 0 | AM171: =IF(VLOOKUP(AF171,Group,7,FALSE)="","",VLOOKUP(AF171,Group,7,FALSE)) ->  | AO171: X
B172: Decos | E172: 12" x 13.3" | G172: Mosaic | I172: 3" Hexagon | K172: mesh-mounted | P172: 1.10 SF/Sheet | Q172: Stock | S172: =IF(Suggested="Yes",'Price List'!AA172,'Price List'!AG172) -> 34.35 | T172: SF | U172: =+Instructions!$B$3 -> B | W172: =+Instructions!$C$22 -> 0 | X172: =ROUND($AA172*(1-W172)+0.004999,2) -> 34.35 | AA172: 34.35 | AB172: =+W172 -> 0 | AC172: =+X172 -> 34.35 | AD172: =(AG172-AC172)/AG172 -> 0 | AF172: 3 | AG172: =SUM(AJ172:AL172)+AE172 -> 34.35 | AJ172: =ROUND(AC172/(1-VLOOKUP(AF172,Group,2,FALSE)),2) -> 34.35 | AK172: =IF(VLOOKUP(AF172,Group,5,FALSE)="YES",VLOOKUP(ROUND(ROUND(AJ172,1)-AJ172,2),Round,2,FALSE)+VLOOKUP(AF172,Group,6,FALSE),0) -> 0 | AL172: =IF(VLOOKUP(AF172,Group,7,FALSE)="",0,ROUND(AJ172-0.04999,1)-AJ172+AM172) -> 0 | AM172: =IF(VLOOKUP(AF172,Group,7,FALSE)="","",VLOOKUP(AF172,Group,7,FALSE)) ->  | AO172: X
B173: Decos | E173: 12" x 12" | G173: Mosaic | I173: Basket Weave | K173: mesh-mounted (0.97 SF/Sheet) | P173: 9.70 SF/CTN | S173: =IF(Suggested="Yes",'Price List'!AA173,'Price List'!AG173) -> 18.95 | T173: SF | U173: =+Instructions!$B$3 -> B | W173: =+Instructions!$C$22 -> 0 | X173: =ROUND($AA173*(1-W173)+0.004999,2) -> 18.95 | AA173: 18.95 | AB173: =+W173 -> 0 | AC173: =+X173 -> 18.95 | AD173: =(AG173-AC173)/AG173 -> 0 | AF173: 3 | AG173: =SUM(AJ173:AL173)+AE173 -> 18.95 | AJ173: =ROUND(AC173/(1-VLOOKUP(AF173,Group,2,FALSE)),2) -> 18.95 | AK173: =IF(VLOOKUP(AF173,Group,5,FALSE)="YES",VLOOKUP(ROUND(ROUND(AJ173,1)-AJ173,2),Round,2,FALSE)+VLOOKUP(AF173,Group,6,FALSE),0) -> 0 | AL173: =IF(VLOOKUP(AF173,Group,7,FALSE)="",0,ROUND(AJ173-0.04999,1)-AJ173+AM173) -> 0 | AM173: =IF(VLOOKUP(AF173,Group,7,FALSE)="","",VLOOKUP(AF173,Group,7,FALSE)) ->  | AO173: X
B174: Decos | E174: 11" x 11" | G174: Mosaic | I174: Herringbone | K174: mesh-mounted | P174: 0.84 SF/Sheet | Q174: Stock | S174: =IF(Suggested="Yes",'Price List'!AA174,'Price List'!AG174) -> 25.1 | T174: SF | U174: =+Instructions!$B$3 -> B | W174: =+Instructions!$C$22 -> 0 | X174: 25.1 | AA174: 25.1 | AB174: 0 | AC174: 25.1 | AD174: 0 | AF174: 3 | AG174: 25.1 | AJ174: 25.1 | AK174: 0 | AL174: 0 | AO174: X
AO175: X
C179: This price list is available electronically on an Excel spreadsheet at www.conestogatile.com/pricelists.
C181: The spreadsheet has many special features to assist you. Apply your discount to generate your net costs for your purchasing department. Apply your standard gross margin percentage or custom prices to generate your own custom price list for your showroom. Print out individual price list for each series that can be attached to the back of your sample boards for easy reference.
A183: X | B183: X | C183: X | D183: X | E183: X | F183: X | G183: X | H183: X | I183: X | J183: X | K183: X | L183: X | M183: X | N183: X | O183: X | P183: X | Q183: X | R183: X | S183: X | T183: X | U183: X | V183: X | W183: X | X183: X | Y183: X | Z183: X | AA183: X | AB183: X | AC183: X | AD183: X | AE183: X | AF183: X | AG183: X | AH183: X | AI183: X | AJ183: X | AK183: X | AL183: X | AM183: X | AN183: X | AO183: X
D185: $.05 Round Matrix
D186: -0.04 | E186: 0.01
D187: -0.03 | E187: 0.02
D188: -0.02 | E188: 0.03
D189: -0.01 | E189: -0.01
D190: 0 | E190: 0
D191: 0.01 | E191: 0.01
D192: 0.02 | E192: 0.02
D193: 0.03 | E193: 0.03
D194: 0.04 | E194: -0.01
D195: 0.05 | E195: 0

Sheet Websites
A1: Easy Access Website links
A3: ConestogaTile's Website | B3: http://www.cctd.com/index.php
A5: Manufacturer's Home Page | B5: https://www.novabell.it/en/
A8: Product | B8: Direct Website Link
A9: ASPEN | B9: https://www.novabell.it/en/collections/20496/
A10: BRICKUP | B10: https://www.novabell.it/en/collections/brickup/
A11: EXTRA | B11: https://www.novabell.it/en/collections/extra/
A12: MICHELANGELO (DISC 10/23/24) | B12: https://www.novabell.it/en/collections/imperial-michelangelo/
A13: SOVEREIGN | B13: https://www.novabell.it/en/collections/sovereign/
A14: URBE

Sheet Changes
A1: Date | C1: Description
A2: Announced | B2: Series
A4: New Products
A5: 2016-04-01 | B5: Imperial | C5: Glazed Porcelain
A6: 2017-03-06 | B6: Imperial | C6: Added colors Calacatta Beige and Nero Imperiale.
A7: 2017-03-06 | B7: Materia | C7: Glazed Porcelain
A8: 2018-02-01 | B8: Deco | C8: Glazed Porcelain
A9: 2018-02-01 | B9: Sovereign | C9: Glazed Porcelain
A10: 2018-02-01 | B10: Venice | C10: Glazed Porcelain - Named Imperial Venice on Novabell's Website
A11: 2019-03-12 | B11: Michelangelo | C11: Glazed Porcelain - Named Imperial Michelangelo on Novabell's Website
A12: 2021-01-01 | B12: Aspen | C12: Glazed Porcelain
A13: 2021-01-01 | B13: Brickup | C13: Glazed Porcelain - 3D Brick
A14: 2024-02-01 | B14: Extra | C14: Glazed Porcelain
A15: 2024-09-01 | B15: Urbe | C15: Glazed Porcelain
A18: Discontinued Products
A19: 2018-11-26 | B19: Imperial | C19: In the "Silk" finish only, all formats in colors Calacatta Beige, Cappuccino and Nero Imperiale.
A20: 2019-08-27 | B20: Imperial | C20: In the "Silk" finish only, all formats in colors Calacatta Beige and Cappuccino.
A21: 2019-10-28 | B21: Materia | C21: 12" x 24" & 24" x 24" Field Tile formats in colors Ghiaccio and Grigio only.
A22: 2020-12-04 | B22: Imperial | C22: In the "Silk" finish only, all formats in colors Crema and Nero Imperiale.
A23: 2020-12-04 | B23: Materia | C23: 2-3/8" x 10" Field Tile format in colors Blue, Grigio and Mud only.
A24: 2021-11-24 | B24: Imperial | C24: All formats in the "Silk" finish. Colors Cappuccino, Grigio Imperiale and London Grey in all formats and finishes. Cassettone mosaic in all colors.
A25: 2022-08-22 | B25: Deco | C25: Entire Series. (Discontinued by CCTD) - Disc. by Novabell 12/31/24!
A26: 2022-08-22 | B26: Venice | C26: Entire Series. (Discontinued by CCTD)
A27: 2022-10-17 | B27: Imperial | C27: Entire Series. (Discontinued by Novabell)
A28: 2023-09-15 | B28: Materia | C28: Entire Series. (Discontinued by CCTD)
A29: 2024-09-05 | B29: Aspen | C29: 8" x 48" Field Tile format only in all colors.
A30: 2024-09-05 | B30: Sovereign | C30: 2" x 4" 3D and 3" x 3" 3D Mosaics only in all colors.
A31: 2024-10-23 | B31: Michelangelo | C31: Entire Series. (Discontinued by Novabell)
A32: 2024-11-04 | B32: Extra | C32: 36" x 36" and 36" x 72" Field Tile formats only in all colors. | D32: (Discontinued by Novabell)
A33: 2024-11-04 | B33: Sovereign | C33: 24" x 48" Field Tile format only in all colors. Colors Antracite and Tabacco only in all formats. | D33: (Discontinued by Novabell)
